{"text_format":"1","workbook":"xlsx","n_sheets":12,"sheets":["基礎入力","鑑　様式第21号","１　様式第18号","２　様式第18号別添1_（場所毎）","３　様式第19号","集計・検算","４　様式第20号","５　様式21　別紙１","６　様式21号　別紙２","７　様式第13号","人件費領収書（一括払い用）","備品管理台帳"],"not_rendered":{"charts":0,"images":0,"macros":1,"external_links":0,"defined_names":20,"comments":5,"pivot_tables":0},"unopened":[],"bounds":{"document_bytes":16777216,"sheet_cells":100000,"rows_first":2000,"rows_last":500,"rows_between":2000,"halvings":0,"cell_chars":16384,"cell_head_chars":4096},"cells_cut":0,"cells_raw":0,"read":"whole","date_system":"1900"}

{"sheet":"基礎入力","index":0,"n_rows":24,"n_cols":10,"rows_kept":24,"cut":false,"hidden":false,"merged":[[18,0,19,0],[18,1,19,1],[18,6,19,6],[18,9,19,9],[23,1,23,4],[20,0,21,0],[20,1,21,1],[20,6,21,6],[20,9,21,9],[22,1,22,4],[22,6,22,8],[4,1,4,4],[6,0,7,0],[6,1,7,1],[6,2,6,5],[6,6,6,9]]}
[]
["黄色のセルだけ入力して下さい"]
["黄色のセルに、採択申請書、採択決定通知、変更申請書（届出書）、変更承認通知、採択決定前着手届の情報を入力して下さい。"]
[]
["活動組織名","○○の森保存会",null,null,null,"代表者名","○山□夫","取得年数",1,"年目"]
[]
["メニュー","交付単価","採択申請",null,null,null,"変更申請（届）"]
[null,null,"申請面積等","交付金額","市町村の\n支援額","計","申請面積等","交付金額","市町村の\n支援額","計"]
["活動推進費",112500,null,112500,37500,{"$f":"SUM(D9:E9)","v":150000},null,null,null,{"$f":"IF($H$18=0,F9,H9+I9)","v":150000}]
["地域環境保全タイプ（里山林保全）",{"$f":"IF($I$5=1,120000,IF($I$5=2,115000,IF($I$5=3,110000,0)))","v":120000},1,{"$f":"B10*C10","v":120000},40000,160000,null,{"$f":"$B10*G10","v":0},null,{"$f":"IF($H$18=0,F10,H10+I10)","v":160000}]
["地域環境保全タイプ(侵入竹除去・竹林整備）",{"$f":"IF($I$5=1,285000,IF($I$5=2,265000,IF($I$5=3,265000,0)))","v":285000},null,{"$f":"B11*C11","v":0},null,0,null,{"$f":"$B11*G11","v":0},null,{"$f":"IF($H$18=0,F11,H11+I11)","v":0}]
["森林資源利用タイプ",{"$f":"IF($I$5=1,120000,IF($I$5=2,115000,IF($I$5=3,110000,0)))","v":120000},null,{"$f":"B12*C12","v":0},null,0,null,{"$f":"$B12*G12","v":0},null,0]
["森林機能強化タイプ",800,null,{"$f":"B13*C13","v":0},null,0,null,{"$f":"$B13*G13","v":0},null,0]
["関係人口創出・維持タイプ",50000,null,{"$f":"B14*C14","v":0},null,0,null,{"$f":"$B14*G14","v":0},null,0]
["資機材・施設の整備1/2",null,112000,56000,"-",56000,null,null,"-",56000]
["資機材・施設の整備1/3",null,null,null,"-",0,null,null,"-",0]
["資機材・施設の整備等（賃借料1/3）",null,null,null,null,null,null,null,null,0]
["合計",null,null,{"$f":"SUM(D9:D16)","v":288500},{"$f":"SUM(E9:E14)","v":77500},{"$f":"SUM(F9:F16)","v":366000},null,{"$f":"SUM(H9:H17)","v":0},null,{"$f":"SUM(J9:J16)","v":366000}]
["間伐等（除伐・枝打ち含む）の実施面積(ha)",1,null,null,null,null,null,null,null,{"$f":"B19","v":1}]
[]
["当該年度に長期にわたり手入れをされていなかったと考えられる森林を整備した面積(ha)",1,null,null,null,null,null,null,null,{"$f":"B21","v":1}]
[]
[null,"採択通知書の日付け→",null,null,null,null,"変更承認通知書の日付け→"]
[null,"採択決定前着手届の着手予定日→"]

{"sheet":"鑑　様式第21号","index":1,"n_rows":41,"n_cols":8,"rows_kept":41,"cut":false,"hidden":false,"merged":[[2,7,2,8],[15,0,15,8],[21,0,21,8],[9,6,10,8],[11,6,11,8],[9,5,10,5]]}
["（別紙３　様式第21号）"]
[]
[null,null,null,null,null,null,null,"令和　年　月　日"]
[]
[null,"森林・山村多面的機能発揮対策"]
[null,"群馬県地域協議会"]
[null,"　会長　山﨑　信明　様"]
[]
[]
[null,null,null,null,null,"活動組織名",{"$f":"基礎入力!B5","v":"○○の森保存会"}]
[]
[null,null,null,null,null,"代表者",{"$f":"基礎入力!G5","v":"○山□夫"}]
[]
[]
[]
["令和６年度　森林・山村多面的機能発揮対策交付金に係る実績状況報告書"]
[]
["　　令和６年度の実施状況について、森林・山村多面的機能発揮対策実施要領（平成25年5月"]
["　16日25林整森第74号林野庁長官通知）別紙３の第５の８に基づき、下記の関係書類を添え"]
["　て報告する。"]
[]
["記"]
[]
[1,"令和６年度　森林・山村多面的機能発揮対策交付金（活動記録兼作業写真整理帳）"]
[null,"（別紙３　様式第18号）"]
[]
[2,"作業写真整理帳（活動場所毎の作業写真）"]
[null,"（別紙３　様式第18号別添）"]
[]
[3,"令和６年度　森林・山村多面的機能発揮対策交付金（金銭出納簿）"]
[null,"（別紙３　様式第19号）"]
[]
[4,"令和６年度　モニタリング結果報告書（別紙３　様式第20号）"]
[]
[5,"令和６年度　実施状況整理票（別紙１）"]
[]
[6,"令和６年度　森林・山村多面的機能発揮対策に対する効果チェックシート（別紙２）"]
[]
[7,"環境負荷軽減のクロスコンプライアンスチェックシート（別紙３　様式第13号）"]
[]
[null,"（※精算払いがある場合は業務方法書の別記様式第1号も併せて添付すること。）"]

{"sheet":"１　様式第18号","index":2,"n_rows":108,"n_cols":22,"rows_kept":108,"cut":false,"hidden":false,"merged":[[95,22,95,23],[96,15,96,19],[98,14,98,19],[88,0,88,4],[88,5,88,9],[89,0,96,9],[89,11,89,13],[89,14,89,23],[90,11,96,13],[90,14,90,16],[90,17,90,23],[91,14,91,16],[91,17,91,23],[92,14,92,16],[92,17,92,23],[93,14,96,14],[93,15,93,19],[94,15,94,19],[95,15,95,19],[79,0,86,9],[79,11,79,13],[79,14,79,23],[80,11,86,13],[80,14,80,16],[80,17,80,23],[81,14,81,16],[81,17,81,23],[82,14,82,16],[82,17,82,23],[83,14,86,14],[83,15,83,19],[84,15,84,19],[85,15,85,19],[85,22,85,23],[86,15,86,19],[74,15,74,19],[75,15,75,19],[75,22,75,23],[76,15,76,19],[78,0,78,4],[78,5,78,9],[65,22,65,23],[66,15,66,19],[68,0,68,4],[68,5,68,9],[69,0,76,9],[69,11,69,13],[69,14,69,23],[70,11,76,13],[70,14,70,16],[70,17,70,23],[71,14,71,16],[71,17,71,23],[72,14,72,16],[72,17,72,23],[73,14,76,14],[73,15,73,19],[58,0,58,4],[58,5,58,9],[59,0,66,9],[59,11,59,13],[59,14,59,23],[60,11,66,13],[60,14,60,16],[60,17,60,23],[61,14,61,16],[61,17,61,23],[62,14,62,16],[62,17,62,23],[63,14,66,14],[63,15,63,19],[64,15,64,19],[65,15,65,19],[53,0,53,6],[55,0,55,23],[56,14,56,16],[56,17,56,23],[57,14,57,16],[57,17,57,23],[7,17,7,23],[8,14,8,16],[0,0,0,6],[2,0,2,23],[3,14,3,16],[3,17,3,23],[4,14,4,16],[4,17,4,23],[5,0,5,4],[8,17,8,23],[5,5,5,9],[6,0,13,9],[6,11,6,13],[6,14,6,23],[7,11,13,13],[7,14,7,16],[9,14,9,16],[9,17,9,23],[10,14,13,14],[10,15,10,19],[11,15,11,19],[12,15,12,19],[12,22,12,23],[13,15,13,19],[45,14,45,19],[35,0,35,4],[35,5,35,9],[36,0,43,9],[36,11,36,13],[37,14,37,16],[37,17,37,23],[38,14,38,16],[36,14,36,23],[37,11,43,13],[38,17,38,23],[39,14,39,16],[39,17,39,23],[40,14,43,14],[40,15,40,19],[43,15,43,19],[15,0,15,4],[15,5,15,9],[16,14,16,23],[17,11,23,13],[17,14,17,16],[17,17,17,23],[18,14,18,16],[18,17,18,23],[19,14,19,16],[19,17,19,23],[20,14,23,14],[20,15,20,19],[21,15,21,19],[22,15,22,19],[22,22,22,23],[42,22,42,23],[23,15,23,19],[41,15,41,19],[42,15,42,19],[31,15,31,19],[32,15,32,19],[33,15,33,19],[25,0,25,4],[25,5,25,9],[26,0,33,9],[26,11,26,13],[26,14,26,23],[27,11,33,13],[29,17,29,23],[27,14,27,16],[27,17,27,23],[28,14,28,16],[28,17,28,23],[29,14,29,16],[30,14,33,14],[30,15,30,19],[32,22,32,23],[16,0,23,9],[16,11,16,13]]}
["（別紙３　様式第18号）"]
["令和６年度　森林・山村多面的機能発揮対策交付金"]
["活動記録兼作業写真整理帳（活動日毎の集合写真）"]
[null,null,null,null,null,null,null,null,null,null,null,null,null,null,"№："]
[null,null,null,null,null,null,null,null,null,null,null,null,null,null,"組織名：",null,null,{"$f":"基礎入力!$B$5","v":"○○の森保存会"}]
["　日　付",null,null,null,null,"令和○年○月○日"]
["ダブルクリックで写真を選択",null,null,null,null,null,null,null,null,null,null,"活動項目"]
[null,null,null,null,null,null,null,null,null,null,null,"取組内容",null,null,"活動場所"]
[null,null,null,null,null,null,null,null,null,null,null,null,null,null,"活動内容"]
[null,null,null,null,null,null,null,null,null,null,null,null,null,null,"実施時間"]
[null,null,null,null,null,null,null,null,null,null,null,null,null,null,"活動参加人数","構成員",null,null,null,null,null,"名"]
[null,null,null,null,null,null,null,null,null,null,null,null,null,null,null,"構成員以外",null,null,null,null,null,"名"]
[null,null,null,null,null,null,null,null,null,null,null,null,null,null,null,"合　計",null,null,null,null,null,"名"]
[null,null,null,null,null,null,null,null,null,null,null,null,null,null,null,"うち地域外関係者",null,null,null,null,null,"名"]
[]
["　日　付",null,null,null,null,"令和○年○月○日"]
["ダブルクリックで写真を選択",null,null,null,null,null,null,null,null,null,null,"活動項目"]
[null,null,null,null,null,null,null,null,null,null,null,"取組内容",null,null,"活動場所"]
[null,null,null,null,null,null,null,null,null,null,null,null,null,null,"活動内容"]
[null,null,null,null,null,null,null,null,null,null,null,null,null,null,"実施時間"]
[null,null,null,null,null,null,null,null,null,null,null,null,null,null,"活動参加人数","構成員",null,null,null,null,null,"名"]
[null,null,null,null,null,null,null,null,null,null,null,null,null,null,null,"構成員以外",null,null,null,null,null,"名"]
[null,null,null,null,null,null,null,null,null,null,null,null,null,null,null,"合　計",null,null,null,null,null,"名"]
[null,null,null,null,null,null,null,null,null,null,null,null,null,null,null,"うち地域外関係者",null,null,null,null,null,"名"]
[]
["　日　付",null,null,null,null,"令和○年○月○日"]
["ダブルクリックで写真を選択",null,null,null,null,null,null,null,null,null,null,"活動項目"]
[null,null,null,null,null,null,null,null,null,null,null,"取組内容",null,null,"活動場所"]
[null,null,null,null,null,null,null,null,null,null,null,null,null,null,"活動内容"]
[null,null,null,null,null,null,null,null,null,null,null,null,null,null,"実施時間"]
[null,null,null,null,null,null,null,null,null,null,null,null,null,null,"活動参加人数","構成員",null,null,null,null,null,"名"]
[null,null,null,null,null,null,null,null,null,null,null,null,null,null,null,"構成員以外",null,null,null,null,null,"名"]
[null,null,null,null,null,null,null,null,null,null,null,null,null,null,null,"合　計",null,null,null,null,null,"名"]
[null,null,null,null,null,null,null,null,null,null,null,null,null,null,null,"うち地域外関係者",null,null,null,null,null,"名"]
[]
["　日　付",null,null,null,null,"令和○年○月○日"]
["ダブルクリックで写真を選択",null,null,null,null,null,null,null,null,null,null,"活動項目"]
[null,null,null,null,null,null,null,null,null,null,null,"取組内容",null,null,"活動場所"]
[null,null,null,null,null,null,null,null,null,null,null,null,null,null,"活動内容"]
[null,null,null,null,null,null,null,null,null,null,null,null,null,null,"実施時間"]
[null,null,null,null,null,null,null,null,null,null,null,null,null,null,"活動参加人数","構成員",null,null,null,null,null,"名"]
[null,null,null,null,null,null,null,null,null,null,null,null,null,null,null,"構成員以外",null,null,null,null,null,"名"]
[null,null,null,null,null,null,null,null,null,null,null,null,null,null,null,"合　計",null,null,null,null,null,"名"]
[null,null,null,null,null,null,null,null,null,null,null,null,null,null,null,"うち地域外関係者",null,null,null,null,null,"名"]
[]
["活動項目"]
["①：活動推進費"]
["②：地域環境保全タイプ（里山林保全）"]
["③：地域環境保全タイプ（侵入竹除去・竹林整備）"]
["④：森林資源利用タイプ　　　"]
["⑤：森林機能強化タイプ　"]
["⑥：関係人口創出・維持タイプ"]
[]
["（別紙３　様式第18号）"]
["令和６年度　森林・山村多面的機能発揮対策交付金"]
["活動記録兼作業写真整理帳（活動日毎の集合写真）"]
[null,null,null,null,null,null,null,null,null,null,null,null,null,null,"№："]
[null,null,null,null,null,null,null,null,null,null,null,null,null,null,"組織名：",null,null,{"$f":"基礎入力!$B$5","v":"○○の森保存会"}]
["　日　付",null,null,null,null,"令和○年○月○日"]
["ダブルクリックで写真を選択",null,null,null,null,null,null,null,null,null,null,"活動項目"]
[null,null,null,null,null,null,null,null,null,null,null,"取組内容",null,null,"活動場所"]
[null,null,null,null,null,null,null,null,null,null,null,null,null,null,"活動内容"]
[null,null,null,null,null,null,null,null,null,null,null,null,null,null,"実施時間"]
[null,null,null,null,null,null,null,null,null,null,null,null,null,null,"活動参加人数","構成員",null,null,null,null,null,"名"]
[null,null,null,null,null,null,null,null,null,null,null,null,null,null,null,"構成員以外",null,null,null,null,null,"名"]
[null,null,null,null,null,null,null,null,null,null,null,null,null,null,null,"合　計",null,null,null,null,null,"名"]
[null,null,null,null,null,null,null,null,null,null,null,null,null,null,null,"うち地域外関係者",null,null,null,null,null,"名"]
[]
["　日　付",null,null,null,null,"令和○年○月○日"]
["ダブルクリックで写真を選択",null,null,null,null,null,null,null,null,null,null,"活動項目"]
[null,null,null,null,null,null,null,null,null,null,null,"取組内容",null,null,"活動場所"]
[null,null,null,null,null,null,null,null,null,null,null,null,null,null,"活動内容"]
[null,null,null,null,null,null,null,null,null,null,null,null,null,null,"実施時間"]
[null,null,null,null,null,null,null,null,null,null,null,null,null,null,"活動参加人数","構成員",null,null,null,null,null,"名"]
[null,null,null,null,null,null,null,null,null,null,null,null,null,null,null,"構成員以外",null,null,null,null,null,"名"]
[null,null,null,null,null,null,null,null,null,null,null,null,null,null,null,"合　計",null,null,null,null,null,"名"]
[null,null,null,null,null,null,null,null,null,null,null,null,null,null,null,"うち地域外関係者",null,null,null,null,null,"名"]
[]
["　日　付",null,null,null,null,"令和○年○月○日"]
["ダブルクリックで写真を選択",null,null,null,null,null,null,null,null,null,null,"活動項目"]
[null,null,null,null,null,null,null,null,null,null,null,"取組内容",null,null,"活動場所"]
[null,null,null,null,null,null,null,null,null,null,null,null,null,null,"活動内容"]
[null,null,null,null,null,null,null,null,null,null,null,null,null,null,"実施時間"]
[null,null,null,null,null,null,null,null,null,null,null,null,null,null,"活動参加人数","構成員",null,null,null,null,null,"名"]
[null,null,null,null,null,null,null,null,null,null,null,null,null,null,null,"構成員以外",null,null,null,null,null,"名"]
[null,null,null,null,null,null,null,null,null,null,null,null,null,null,null,"合　計",null,null,null,null,null,"名"]
[null,null,null,null,null,null,null,null,null,null,null,null,null,null,null,"うち地域外関係者",null,null,null,null,null,"名"]
[]
["　日　付",null,null,null,null,"令和○年○月○日"]
["ダブルクリックで写真を選択",null,null,null,null,null,null,null,null,null,null,"活動項目"]
[null,null,null,null,null,null,null,null,null,null,null,"取組内容",null,null,"活動場所"]
[null,null,null,null,null,null,null,null,null,null,null,null,null,null,"活動内容"]
[null,null,null,null,null,null,null,null,null,null,null,null,null,null,"実施時間"]
[null,null,null,null,null,null,null,null,null,null,null,null,null,null,"活動参加人数","構成員",null,null,null,null,null,"名"]
[null,null,null,null,null,null,null,null,null,null,null,null,null,null,null,"構成員以外",null,null,null,null,null,"名"]
[null,null,null,null,null,null,null,null,null,null,null,null,null,null,null,"合　計",null,null,null,null,null,"名"]
[null,null,null,null,null,null,null,null,null,null,null,null,null,null,null,"うち地域外関係者",null,null,null,null,null,"名"]
[]
["活動項目"]
["①：活動推進費"]
["②：地域環境保全タイプ（里山林保全）"]
["③：地域環境保全タイプ（侵入竹除去・竹林整備）"]
["④：森林資源利用タイプ　　　"]
["⑤：森林機能強化タイプ　"]
["⑥：関係人口創出・維持タイプ"]
[]
[]
["　　　　　"]

{"sheet":"２　様式第18号別添1_（場所毎）","index":3,"n_rows":43,"n_cols":19,"rows_kept":43,"cut":false,"hidden":false,"merged":[[34,0,34,9],[41,0,41,24],[42,0,42,24],[27,15,27,24],[28,11,33,14],[28,15,28,17],[28,18,28,24],[29,15,29,17],[29,18,29,24],[30,15,30,17],[30,18,30,24],[31,15,31,17],[27,11,27,14],[25,0,25,9],[26,0,26,2],[26,3,26,4],[26,5,26,9],[27,0,33,9],[18,18,18,24],[19,15,19,17],[19,18,19,24],[20,15,20,17],[20,18,20,24],[21,15,21,17],[11,15,11,17],[15,0,15,9],[16,0,16,2],[16,3,16,4],[16,5,16,9],[17,0,23,9],[17,11,17,14],[17,15,17,24],[18,11,23,14],[18,15,18,17],[7,0,13,9],[7,11,7,14],[7,15,7,24],[8,11,9,14],[8,15,8,17],[8,18,8,24],[9,15,9,17],[9,18,9,24],[10,15,10,17],[10,18,10,24],[4,15,4,17],[4,18,4,24],[5,0,5,9],[6,0,6,2],[6,3,6,4],[6,5,6,9],[0,0,0,6],[1,0,1,24],[2,15,2,17],[2,18,2,24],[3,15,3,17],[3,18,3,24]]}
["（別紙３　様式第18号　別添）"]
["作業写真整理帳（活動場所毎の作業写真）"]
[null,null,null,null,null,null,null,null,null,null,null,null,null,null,null,"№："]
[null,null,null,null,null,null,null,null,null,null,null,null,null,null,null,"組織名：",null,null,{"$f":"基礎入力!B5","v":"○○の森保存会"}]
[]
["作業前"]
[null,null,null,null,null,"令和○年○月○日"]
["ダブルクリックで写真を選択",null,null,null,null,null,null,null,null,null,null,"活動項目"]
[null,null,null,null,null,null,null,null,null,null,null,"取組内容",null,null,null,"活動場所"]
[null,null,null,null,null,null,null,null,null,null,null,null,null,null,null,"活動内容"]
[]
[]
[]
[]
[]
["作業中"]
[null,null,null,null,null,"令和○年○月○日"]
["ダブルクリックで写真を選択"]
[]
[]
[]
[]
[]
[]
[]
["作業後"]
[null,null,null,null,null,"令和○年○月○日"]
["ダブルクリックで写真を選択"]
[]
[]
[]
[]
[]
[]
["活動項目"]
["①：活動推進費"]
["②：地域環境保全タイプ（里山林保全）"]
["③：地域環境保全タイプ（侵入竹除去・竹林整備）"]
["④：森林資源利用タイプ　　　"]
["⑤：森林機能強化タイプ　"]
["⑥：関係人口創出・維持タイプ"]
["※活動前、活動中、活動後の状況について、それぞれ撮影すること。"]
["※写真撮影は作業起番ごとに１箇所以上で撮影すること。\n　　ただし、作業起番面積が1ha以上の場合は2箇所以上とする。"]

{"sheet":"３　様式第19号","index":4,"n_rows":48,"n_cols":22,"rows_kept":48,"cut":false,"hidden":false,"merged":[[4,12,5,12],[2,0,2,12],[4,0,5,0],[4,1,5,1],[4,2,5,2],[4,3,5,3],[4,4,5,4],[4,5,4,8],[4,9,5,9],[4,10,5,10],[4,11,5,11],[3,9,3,12],[4,16,5,16],[4,17,4,20],[4,21,5,21],[4,15,5,15],[18,17,18,20]]}
["（別紙３　様式第19号）"]
[]
["令和６年度　森林・山村多面的機能発揮対策交付金（金銭出納簿）"]
[null,null,null,null,null,null,null,null,null,{"$f":"基礎入力!B5","v":"○○の森保存会"}]
["日付","タイプ","内容","収入（円）","立替（円）","支出（円）",null,null,null,"資機材購入費\nのうち交付金\n充当額","領収書\n等番号","活動実施日","備考\n（財産の\n保管場所）",null,"集計","収入（円）","立替（円）","支出（円）",null,null,null,"資機材購入費\nのうち交付金\n充当額"]
[null,null,null,null,null,"人件費","委託費","その他","資機材の\n購入等",null,null,null,null,null,"タイプ",null,null,"人件費","委託費","その他","資機材の\n購入等"]
["2024-05-01","活動推進費","安全装具（ヘルメット）",null,50000,null,null,50000,null,null,"①",null,null,null,"交付金受取",{"$f":"SUMIF($B$7:$B$47,$O7,D$7:D$47)","v":300000},{"$f":"SUMIF($B$7:$B$47,$O7,E$7:E$47)","v":0},{"$f":"SUMIF($B$7:$B$47,$O7,F$7:F$47)","v":0},{"$f":"SUMIF($B$7:$B$47,$O7,G$7:G$47)","v":0},{"$f":"SUMIF($B$7:$B$47,$O7,H$7:H$47)","v":0},{"$f":"SUMIF($B$7:$B$47,$O7,I$7:I$47)","v":0},{"$f":"SUMIF($B$7:$B$47,$O7,J$7:J$47)","v":0}]
["2024-06-02","自己資金等","会費",60000,null,null,null,null,null,null,"②",null,null,null,"活動推進費",0,0,0,0,50000,0,0]
["2024-06-02","資機材(1/2)","チェンソー",null,112000,null,null,null,112000,56000,"③",null,"団体倉庫",null,"里山林保全",0,0,0,0,2200,0,0]
["2024-07-30","交付金受取","概算払い",300000,null,null,null,null,null,null,null,null,null,null,"竹林整備",0,0,0,0,0,0,0]
["2024-07-30","活動推進費","立替金精算",null,-50000,null,null,null,null,null,"①",null,null,null,"資源利用",0,0,0,0,0,0,0]
["2024-07-30","資機材(1/2)","立替金精算",null,-112000,null,null,null,null,null,"②",null,null,null,"機能強化",0,0,0,0,0,0,0]
["2024-08-10","里山林保全","燃料（チェンソー用ガソリン）",null,null,null,null,2200,null,null,"④",null,null,null,"関係人口",0,0,0,0,0,0,0]
[null,null,null,null,null,null,null,null,null,null,null,null,null,null,"資機材(1/2)",0,0,0,0,0,112000,56000]
[null,null,null,null,null,null,null,null,null,null,null,null,null,null,"資機材(1/3)",0,0,0,0,0,0,0]
[null,null,null,null,null,null,null,null,null,null,null,null,null,null,"資機材賃借料(1/3)",0,0,0,0,0,0,0]
[null,null,null,null,null,null,null,null,null,null,null,null,null,null,"自己資金等",60000,0,0,0,0,0,0]
[null,null,null,null,null,null,null,null,null,null,null,null,null,null,"計",{"$f":"SUM(P7:P17)","v":360000},{"$f":"SUM(Q7:Q17)","v":0},0,0,52200,112000,56000]
[null,null,null,null,null,null,null,null,null,null,null,null,null,null,null,null,null,{"$f":"SUM(R18:U18)","v":164200}]
[]
[]
[]
[]
[]
[]
[]
[]
[]
[]
[]
[]
[]
[]
[]
[]
[]
[]
[]
[]
[]
[]
[]
[]
[]
[]
[]
[]
[null,null,null,{"$f":"SUM(D7:D47)","v":360000},0,0,0,52200,112000,56000]

{"sheet":"集計・検算","index":5,"n_rows":63,"n_cols":18,"rows_kept":63,"cut":false,"hidden":false,"merged":[[10,0,10,2],[1,0,1,3],[3,0,3,2],[3,3,3,8],[6,0,7,2],[6,3,7,3],[6,4,6,7],[6,8,7,8],[6,9,7,9],[6,10,7,10],[7,12,7,13],[8,0,8,2],[9,0,9,2],[21,0,21,2],[11,0,11,2],[11,12,11,13],[12,0,12,2],[13,0,13,2],[14,0,14,2],[15,0,15,2],[15,12,15,13],[16,0,16,2],[17,0,17,2],[18,0,18,2],[19,0,19,2],[20,0,20,2],[30,0,30,2],[24,0,25,2],[24,3,25,3],[24,4,24,5],[24,6,25,6],[24,9,24,12],[26,0,26,2],[27,0,27,2],[28,0,28,2],[29,0,29,2],[24,7,25,7],[24,8,25,8],[41,0,41,1],[41,3,41,9],[31,0,31,2],[32,0,32,2],[33,0,33,2],[34,0,34,2],[35,0,35,2],[36,5,36,7],[38,0,38,2],[39,0,39,1],[39,3,39,9],[40,0,40,1],[40,3,40,9],[53,0,53,2],[42,0,42,1],[42,3,42,9],[43,0,43,1],[43,3,43,9],[45,0,45,1],[46,0,46,1],[47,0,48,0],[47,1,48,1],[51,0,52,2],[51,3,51,5],[51,6,51,9],[60,0,60,2],[61,0,61,2],[62,0,62,2],[54,0,54,2],[55,0,55,2],[56,0,56,2],[57,0,57,2],[58,0,58,2],[59,0,59,2]]}
[]
["このシートは入力不要"]
[]
["活動組織名",null,null,{"$f":"基礎入力!B5","v":"○○の森保存会"}]
[]
["（１）検算"]
["内容",null,null,"収入\n（円）","支出（円）",null,null,null,"資機材購入\n費のうち交\n付金充当額","国の\n支援率","市町村の\n支援率"]
[null,null,null,null,"人件費","委託費","その他","資機材の\n購入等",null,null,null,null,"事業費の額の確認"]
["交付金受取",null,null,{"$f":"'３　様式第19号'!P7","v":300000},"-","-","-","-","-","-","-",null,"事業費合計",{"$f":"SUM(E20:H20)","v":164200},null,null,null,"交付金受取"]
["活動推進費",null,null,"-",{"$f":"'３　様式第19号'!R8","v":0},{"$f":"'３　様式第19号'!S8","v":0},{"$f":"'３　様式第19号'!T8","v":50000},"-","-",{"$f":"IF(基礎入力!D9=0,0,基礎入力!D9/基礎入力!F9)","v":0.75},{"$f":"IF(基礎入力!E9=0,0,基礎入力!E9/基礎入力!J9)","v":0.25},null,"収支",{"$f":"IF(D20=N9,\"一致\",\"不一致\")","v":"不一致"},null,null,null,"活動推進費"]
["地域環境保全タイプ（里山林保全）",null,null,"-",{"$f":"'３　様式第19号'!R9","v":0},{"$f":"'３　様式第19号'!S9","v":0},{"$f":"'３　様式第19号'!T9","v":2200},"-","-",{"$f":"IF(基礎入力!D10=0,0,基礎入力!D10/基礎入力!F10)","v":0.75},{"$f":"IF(基礎入力!E10=0,0,基礎入力!E10/基礎入力!J10)","v":0.25},null,null,null,null,null,null,"里山林保全"]
["地域環境保全タイプ(侵入竹除去・竹林整備）",null,null,"-",{"$f":"'３　様式第19号'!R10","v":0},{"$f":"'３　様式第19号'!S10","v":0},{"$f":"'３　様式第19号'!T10","v":0},"-","-",{"$f":"IF(基礎入力!D11=0,0,基礎入力!D11/基礎入力!F11)","v":0},{"$f":"IF(基礎入力!E11=0,0,基礎入力!E11/基礎入力!J11)","v":0},null,"交付金額の確認",null,null,null,null,"竹林整備"]
["森林資源利用タイプ",null,null,"-",{"$f":"'３　様式第19号'!R11","v":0},{"$f":"'３　様式第19号'!S11","v":0},{"$f":"'３　様式第19号'!T11","v":0},"-","-",{"$f":"IF(基礎入力!D12=0,0,基礎入力!D12/基礎入力!F12)","v":0},{"$f":"IF(基礎入力!E12=0,0,基礎入力!E12/基礎入力!J12)","v":0},null,"交付金合計",{"$f":"D9","v":300000},null,null,null,"資源利用"]
["森林機能強化タイプ",null,null,"-",{"$f":"'３　様式第19号'!R12","v":0},{"$f":"'３　様式第19号'!S12","v":0},{"$f":"'３　様式第19号'!T12","v":0},"-","-",{"$f":"IF(基礎入力!D13=0,0,基礎入力!D13/基礎入力!F13)","v":0},{"$f":"IF(基礎入力!E13=0,0,基礎入力!E13/基礎入力!J13)","v":0},null,"収支",{"$f":"IF(D9=I36,\"一致\",\"不一致\")","v":"不一致"},null,null,null,"機能強化"]
["関係人口創出・維持タイプ",null,null,"-",{"$f":"'３　様式第19号'!R13","v":0},{"$f":"'３　様式第19号'!S13","v":0},{"$f":"'３　様式第19号'!T13","v":0},"-","-",{"$f":"IF(基礎入力!D14=0,0,基礎入力!D14/基礎入力!F14)","v":0},{"$f":"IF(基礎入力!E14=0,0,基礎入力!E14/基礎入力!J14)","v":0},null,null,null,null,null,null,"関係人口"]
["資機材・施設の整備1/2",null,null,"-","-","-","-",{"$f":"'３　様式第19号'!U14","v":112000},{"$f":"'３　様式第19号'!V14","v":56000},{"$f":"IF(H16=0,0,100%)","v":1},"-",null,"自己資金等の額の確認",null,null,null,null,"資機材(1/2)"]
["資機材・施設の整備1/3",null,null,"-","-","-","-",{"$f":"'３　様式第19号'!U15","v":0},{"$f":"'３　様式第19号'!V15","v":0},{"$f":"IF(H17=0,0,100%)","v":0},"-",null,"自己資金等合計",{"$f":"N9-N13","v":-135800},null,null,null,"資機材(1/3)"]
["資機材賃借料(1/3)",null,null,"-","-","-","-",{"$f":"'３　様式第19号'!U16","v":0},{"$f":"'３　様式第19号'!V16","v":0},null,null,null,"収支",{"$f":"IF(D19=N17,\"一致\",\"不一致\")","v":"不一致"},null,null,null,"資機材賃借料(1/3)"]
["自己資金等",null,null,{"$f":"'３　様式第19号'!P17","v":60000},"-","-","-","-","-","-","-",null,null,null,null,null,null,"自己資金等"]
["合計➀",null,null,{"$f":"SUM(D9:D19)","v":360000},{"$f":"SUM(E9:E19)","v":0},0,52200,{"$f":"SUM(H9:H19)","v":112000},56000,null,"-"]
["合計➁",null,null,{"$f":"'３　様式第19号'!P18","v":360000},{"$f":"'３　様式第19号'!R18","v":0},{"$f":"'３　様式第19号'!S18","v":0},{"$f":"'３　様式第19号'!T18","v":52200},{"$f":"'３　様式第19号'!U18","v":112000},{"$f":"'３　様式第19号'!V18","v":56000},"-","-"]
[null,null,null,{"$f":"IF(D20=D21,\"一致\",\"不一致\")","v":"一致"},"一致","一致","一致","一致","一致"]
[]
["（２）予算管理（予算と実績の照合）"]
["メニュー",null,null,"交付単価","直近の予算",null,"実績額\n（Ｂ）","残額\n（Ａ）－（Ｂ）","最終的な\n交付金額\n（A､Bいずれか低い額）","支援額の配分表"]
[null,null,null,null,"申請面積等","交付金額\n（Ａ）",null,null,null,"国","市町村","合計","額の確認"]
["活動推進費",null,null,{"$f":"基礎入力!B9","v":112500},"-",{"$f":"基礎入力!J9","v":150000},{"$f":"SUM(E10:G10)","v":50000},{"$f":"F27-G27","v":100000},{"$f":"IF(F27<G27,F27,G27)","v":50000},{"$f":"IF(基礎入力!E9=0,集計・検算!I27,ROUND(I27*J10,0))","v":37500},{"$f":"IF(H27<0,基礎入力!E9,ROUND(I27*K10,0))","v":12500},{"$f":"SUM(J27:K27)","v":50000},{"$f":"IF(I27=0,\"\",IF(L27=I27,\"一致\",\"不一致\"))","v":"一致"}]
["地域環境保全タイプ（里山林保全）",null,null,{"$f":"基礎入力!B10","v":120000},{"$f":"IF(基礎入力!$H$18=0,基礎入力!C10,基礎入力!G10)","v":1},{"$f":"基礎入力!J10","v":160000},2200,{"$f":"F28-G28","v":157800},{"$f":"IF(F28<G28,F28,G28)","v":2200},{"$f":"IF(基礎入力!E10=0,集計・検算!I28,ROUND(I28*J11,0))","v":1650},{"$f":"IF(H28<0,基礎入力!E10,ROUND(I28*K11,0))","v":550},{"$f":"SUM(J28:K28)","v":2200},{"$f":"IF(I28=0,\"\",IF(L28=I28,\"一致\",\"不一致\"))","v":"一致"}]
["地域環境保全タイプ(侵入竹除去・竹林整備）",null,null,{"$f":"基礎入力!B11","v":285000},{"$f":"IF(基礎入力!$H$18=0,基礎入力!C11,基礎入力!G11)","v":0},{"$f":"基礎入力!J11","v":0},0,0,0,{"$f":"IF(基礎入力!E11=0,集計・検算!I29,ROUND(I29*J12,0))","v":0},{"$f":"IF(H29<0,基礎入力!E11,ROUND(I29*K12,0))","v":0},0,""]
["森林資源利用タイプ",null,null,{"$f":"基礎入力!B12","v":120000},{"$f":"IF(基礎入力!$H$18=0,基礎入力!C12,基礎入力!G12)","v":0},{"$f":"基礎入力!J12","v":0},0,0,0,{"$f":"IF(基礎入力!E12=0,集計・検算!I30,ROUND(I30*J13,0))","v":0},{"$f":"IF(H30<0,基礎入力!E12,ROUNDDOWN(I30*K13,0))","v":0},0,""]
["森林機能強化タイプ",null,null,{"$f":"基礎入力!B13","v":800},{"$f":"IF(基礎入力!$H$18=0,基礎入力!C13,基礎入力!G13)","v":0},{"$f":"基礎入力!J13","v":0},0,0,0,{"$f":"IF(基礎入力!E13=0,集計・検算!I31,ROUND(I31*J14,0))","v":0},{"$f":"IF(H31<0,基礎入力!E13,ROUND(I31*K14,0))","v":0},0,""]
["関係人口創出・維持タイプ",null,null,{"$f":"基礎入力!B14","v":50000},{"$f":"IF(基礎入力!$H$18=0,基礎入力!C14,基礎入力!G14)","v":0},{"$f":"基礎入力!J14","v":0},{"$f":"SUM(E15:G15)","v":0},0,0,{"$f":"IF(基礎入力!E14=0,集計・検算!I32,ROUND(I32*J15,0))","v":0},{"$f":"IF(H32<0,基礎入力!E14,ROUND(I32*K15,0))","v":0},0,""]
["資機材・施設の整備1/2",null,null,{"$f":"基礎入力!B15","v":0},{"$f":"IF(基礎入力!$H$18=0,基礎入力!C15,基礎入力!G15)","v":112000},{"$f":"基礎入力!J15","v":56000},{"$f":"I16","v":56000},0,{"$f":"IF(E33<G33,F33,G33)","v":56000},{"$f":"I33","v":56000},null,56000,"一致"]
["資機材・施設の整備1/3",null,null,{"$f":"基礎入力!B16","v":0},{"$f":"IF(基礎入力!$H$18=0,基礎入力!C16,基礎入力!G16)","v":0},{"$f":"基礎入力!J16","v":0},{"$f":"I17","v":0},0,{"$f":"IF(E34<G34,F34,G34)","v":0},{"$f":"I34","v":0},null,0,""]
["資機材賃借料(1/3)",null,null,{"$f":"基礎入力!B17","v":0},{"$f":"IF(基礎入力!$H$18=0,基礎入力!C17,基礎入力!G17)","v":0},{"$f":"基礎入力!J17","v":0},{"$f":"I18","v":0},null,null,null,null,null,""]
["合計",null,null,{"$f":"SUM(D27:D35)","v":688300},null,{"$f":"SUM(F27:F34)","v":366000},{"$f":"SUM(G27:G34)","v":108200},null,{"$f":"SUM(I27:I34)","v":108200},{"$f":"SUM(J27:J34)","v":95150},{"$f":"SUM(K27:K32)","v":13050},{"$f":"SUM(L27:L34)","v":108200},"一致"]
[null,null,null,null,null,"うち取組に対する交付金の額",null,null,{"$f":"SUM(I27:I32)","v":52200},{"$f":"SUM(J27:J32)","v":39150},{"$f":"SUM(K27:K32)","v":13050},{"$f":"SUM(J37:K37)","v":52200},"一致"]
[]
["（３）精算額の算出"]
["項目",null,"金額\n（円）","備考"]
["採択決定額（Ａ）",null,{"$f":"F36","v":366000}]
["既受領額（Ｂ）",null,{"$f":"SUMIF('３　様式第19号'!C:C,\"概算払い\",'３　様式第19号'!D:D)","v":300000},"概算払い受領額の合計"]
["最終的な交付金額（Ｃ）",null,{"$f":"IF(C41=C42,I36,J36)","v":95150}]
["精算額（Ｃ-Ｂ）",null,{"$f":"C43-C42","v":-204850},"プラスの場合は実施状況報告書と同時に交付金申請書を提出。マイナスの場合は、後日、協議会からの請求に基づき返納。"]
[]
["（４）変更手続きの確認"]
[{"$f":"IF(A48<0.7,\"変更手続き\",\"変更手続き不要\")","v":"変更手続き"}]
[{"$f":"C43/C42","v":0.31716666666666665},"←C÷A"]
[]
[]
["（５）経費の配分"]
["メニュー",null,null,"申請額",null,null,"支援額の配分"]
[null,null,null,"国","市町村","合計","国","市町村","合計","額の確認"]
["活動推進費",null,null,{"$f":"基礎入力!D9","v":112500},{"$f":"基礎入力!E9","v":37500},{"$f":"SUM(D54:E54)","v":150000},{"$f":"J27","v":37500},12500,{"$f":"SUM(G54:H54)","v":50000},{"$f":"IF(D54=0,\"\",IF(L27=I54,\"一致\",\"不一致\"))","v":"一致"}]
["地域環境保全タイプ（里山林保全）",null,null,{"$f":"基礎入力!D10","v":120000},{"$f":"基礎入力!E10","v":40000},{"$f":"SUM(D55:E55)","v":160000},1650,550,{"$f":"SUM(G55:H55)","v":2200},"一致"]
["地域環境保全タイプ(侵入竹除去・竹林整備）",null,null,{"$f":"基礎入力!D11","v":0},{"$f":"基礎入力!E11","v":0},0,0,0,0,""]
["森林資源利用タイプ",null,null,{"$f":"基礎入力!D12","v":0},{"$f":"基礎入力!E12","v":0},0,0,0,0,""]
["森林機能強化タイプ",null,null,{"$f":"基礎入力!D13","v":0},{"$f":"基礎入力!E13","v":0},0,0,0,0,""]
["関係人口創出・維持タイプ",null,null,{"$f":"基礎入力!D14","v":0},{"$f":"基礎入力!E14","v":0},0,0,0,0,""]
["資機材・施設の整備1/2",null,null,{"$f":"基礎入力!D15","v":56000},null,56000,{"$f":"J33","v":56000},null,56000,"一致"]
["資機材・施設の整備1/3",null,null,{"$f":"基礎入力!D16","v":0},null,0,{"$f":"J34","v":0},null,0,""]
["資機材賃借料(1/3)"]
["合計",null,null,{"$f":"SUM(D54:D62)","v":288500},{"$f":"SUM(E54:E59)","v":77500},{"$f":"SUM(F54:F62)","v":366000},{"$f":"SUM(G54:G62)","v":95150},{"$f":"SUM(H54:H59)","v":13050},{"$f":"SUM(I54:I62)","v":108200},{"$f":"IF(D63=0,\"\",IF(L36=I63,\"一致\",\"不一致\"))","v":"一致"}]

{"sheet":"４　様式第20号","index":6,"n_rows":28,"n_cols":1,"rows_kept":28,"cut":false,"hidden":false,"merged":[[0,0,0,5],[1,0,1,5],[8,0,8,5],[6,2,6,5],[9,0,9,1],[6,0,6,1],[4,1,4,5],[5,1,5,5],[27,0,27,5],[12,0,12,1],[13,0,13,1],[14,0,14,1],[19,0,19,1],[24,0,24,1],[25,0,25,1],[11,0,11,5],[16,0,16,5],[23,0,23,5],[17,0,17,1],[18,0,18,1]]}
["（別紙３　様式第20号）"]
["令和６年度　モニタリング結果報告書"]
[]
["１　活動の目標等"]
["タイプ名："]
["目　標："]
["モニタリング調査方法："]
[]
["２　活動実施前の標準地の状況（〇年度）　　　　　　　　　　    写真"]
["標準地の状況を記載"]
[]
["３　活動計画１年目の標準地の状況（〇年度）　　　　　　　　　　写真"]
["標準地の状況を記載"]
["目標達成度"]
["次年度に向けた改善策"]
[]
["４　活動計画２年目の標準地の状況（〇年度）　　　　　　　　　　写真"]
["標準地の状況を記載"]
["目標達成度"]
["次年度に向けた改善策"]
[]
[]
[]
["５　活動計画３年目の標準地の状況（〇年度）　　　　　　　　　　写真"]
["標準地の状況を記載"]
["目標達成度"]
[]
["（注）目標の設定及び標準地の状況の記載については、別に定めるガイドラインを参考とすること。"]

{"sheet":"５　様式21　別紙１","index":7,"n_rows":14,"n_cols":33,"rows_kept":14,"cut":false,"hidden":false,"merged":[[3,6,3,14],[1,1,1,32],[5,6,7,6],[5,7,7,7],[5,18,7,18],[5,19,7,19],[5,20,7,20],[4,11,7,11],[4,12,7,12],[4,13,6,14],[4,18,4,25],[5,29,7,29],[5,30,6,31],[6,21,7,21],[6,22,6,23],[6,24,7,24],[4,26,4,31],[6,25,7,25],[5,21,5,23],[5,24,5,25],[5,26,7,26],[5,27,7,27],[3,17,7,17],[5,28,7,28],[0,1,0,32],[3,1,7,1],[3,2,7,2],[3,3,7,3],[3,4,7,4],[3,5,7,5],[3,15,7,15],[3,16,7,16],[3,18,3,31],[3,32,7,32],[4,6,4,7],[4,8,7,8],[4,9,7,9],[4,10,7,10]]}
[null,"（別紙３　様式第21号　別紙１）"]
[null,"実施状況整理票"]
[]
[null,"都道府県名","地域協議会名","市町村名","対象森林所在市町村名","活動組織名","取組内容",null,null,null,null,null,null,null,null,"構成員(名)","地域外関係者の参加者数（延べ人数）","アドバイザーの活用の有無","交付金の使途（円）",null,null,null,null,null,null,null,null,null,null,null,null,null,"備考"]
[null,null,null,null,null,null,"地域環境保全タイプ",null,"森林資源利用タイプ","森林機能強化タイプ","関係人口創出・維持タイプ（該当の有無）"," 間伐等(除伐、枝打ち含む)の実施面積","当該年度に長期にわたり手入れをされていなかったと考えられる里山林を整備した面積","資機材・施設の整備(円)",null,null,null,null,"収入",null,null,null,null,null,null,null,"支出"]
[null,null,null,null,null,null,"里山林保全","侵入竹除去・竹林整備　",null,null,null,null,null,null,null,null,null,null,"合計","自己負担額","小計","国庫分",null,null,"地方分",null,"合計","人件費","委託料","その他","資機材・施設の整備"]
[null,null,null,null,null,null,null,null,null,null,null,null,null,null,null,null,null,null,null,null,null,"取組に対する交付金","資機材・施設の整備に対する交付金",null,"都道府県の支援額","市町村の支援額"]
[null,null,null,null,null,null,null,null,null,null,null,null,null,"交付率\n1/2以内","交付率\n1/3以内",null,null,null,null,null,null,null,"交付率\n1/2以内","交付率\n1/3以内",null,null,null,null,null,null,"交付率\n1/2以内","交付率\n1/3以内"]
[null,"群馬県","群馬県地域協議会",null,null,{"$f":"基礎入力!B5","v":"○○の森保存会"},{"$f":"集計・検算!E28","v":1},{"$f":"集計・検算!E29","v":0},{"$f":"集計・検算!E30","v":0},{"$f":"集計・検算!E31","v":0},null,{"$f":"基礎入力!B19","v":1},{"$f":"基礎入力!B21","v":1},{"$f":"集計・検算!E33","v":112000},{"$f":"集計・検算!E34+集計・検算!E35","v":0},null,null,null,{"$f":"SUM(T9:U9)","v":-27600},{"$f":"集計・検算!N17","v":-135800},{"$f":"SUM(V9:Z9)","v":108200},{"$f":"集計・検算!J37","v":39150},{"$f":"集計・検算!J33","v":56000},{"$f":"集計・検算!J34+集計・検算!J35","v":0},null,{"$f":"集計・検算!K36","v":13050},{"$f":"SUM(AB9:AF9)","v":164200},{"$f":"集計・検算!E20","v":0},{"$f":"集計・検算!F20","v":0},{"$f":"集計・検算!G20","v":52200},{"$f":"集計・検算!H16","v":112000},{"$f":"集計・検算!H17+集計・検算!H18","v":0}]
[]
[null,"１：支出については自己負担額を含めた額を記載すること。"]
[null,"２：関係人口創出・維持タイプに該当する場合は「1」を記入すること。"]
[null,"３：アドバイザーを活用した場合は、①～⑧の指導・助言の内容を記入すること。（複数回活用した場合は複数記載）"]
[null,null,"①森林施業、②侵入竹の伐採・除去・利活用、③森林資源の活用、④森林生態、植生、⑤関係人口、⑥組織づくり、⑦安全管理、⑧その他"]

{"sheet":"６　様式21号　別紙２","index":8,"n_rows":112,"n_cols":36,"rows_kept":112,"cut":false,"hidden":false,"merged":[[15,1,15,28],[33,25,33,27],[34,25,34,27],[35,25,35,27],[36,25,36,27],[37,25,37,27],[28,25,28,27],[29,25,29,27],[30,25,30,27],[31,25,31,27],[32,25,32,27],[23,25,23,27],[24,25,24,27],[25,25,25,27],[26,25,26,27],[27,25,27,27],[16,1,17,1],[16,2,17,24],[18,1,22,1],[18,2,18,24],[19,2,19,24],[20,2,20,24],[21,2,21,24],[22,2,22,24],[14,1,14,27],[1,1,1,27],[3,1,3,5],[3,6,3,21],[3,22,3,24],[3,25,3,26],[4,1,4,5],[4,6,4,8],[4,9,4,15],[4,16,4,18],[4,19,4,27],[5,1,5,5],[6,1,7,5],[8,1,8,5],[9,1,9,5],[9,6,9,27],[16,25,17,27],[18,25,18,27],[19,25,19,27],[20,25,20,27],[21,25,21,27],[22,25,22,27],[23,1,27,1],[23,2,23,24],[24,2,24,24],[25,2,25,24],[26,2,26,24],[27,2,27,24],[28,1,32,1],[28,2,28,24],[29,2,29,24],[30,2,30,24],[31,2,31,24],[32,2,32,24],[33,1,37,1],[33,2,33,24],[34,2,34,24],[35,2,35,24],[36,2,36,24],[37,2,37,24],[38,1,42,1],[38,2,38,24],[39,2,39,24],[40,2,40,24],[41,2,41,24],[42,2,42,24],[43,1,43,27],[45,1,45,27],[48,1,49,27],[44,1,44,28],[38,25,38,27],[39,25,39,27],[40,25,40,27],[41,25,41,27],[42,25,42,27],[50,1,53,13],[50,14,53,27],[54,1,61,13],[54,14,56,27],[64,1,64,27],[82,1,82,14],[82,15,82,18],[82,19,82,22],[82,23,82,26],[57,14,59,27],[60,14,61,27],[83,1,83,14],[83,15,83,18],[83,19,83,22],[83,23,83,26],[65,2,65,27],[66,2,66,27],[67,2,67,27],[68,2,68,27],[69,2,69,27],[71,2,73,26],[87,1,87,14],[87,15,87,18],[87,19,87,22],[87,23,87,26],[88,1,88,14],[88,15,88,18],[88,19,88,22],[88,23,88,26],[84,1,84,14],[84,15,84,18],[84,19,84,22],[84,23,84,26],[85,1,85,14],[85,19,85,22],[85,23,85,26],[86,1,86,14],[86,15,86,18],[86,19,86,22],[86,23,86,26]]}
[null,"（別紙３　様式第21号　別紙２）"]
[null,"森林・山村多面的機能発揮に対する効果チェックシート"]
[null,"１．活動組織の概要"]
[null,"①活動組織名",null,null,null,null,{"$f":"基礎入力!B5","v":"○○の森保存会"},null,null,null,null,null,null,null,null,null,null,null,null,null,null,null,"取得年数",null,null,null,null,"年"]
[null,"②主な対象森林\nの所在地",null,null,null,null,"都道\n府県",null,null,"群馬県",null,null,null,null,null,null,"市区\n町村",null,null,{"$f":"'５　様式21　別紙１'!E9","v":0},null,null,null,null,null,null,null,null,null,null,null,null,null,false]
[null,"③活動計画の取組年度",null,null,null,null,null,"　１年目",null,null,null,"   ２年目",null,null,null,null,"３年目",null,null,null,null,null,null,null,null,null,null,null,null,null,null,null,null,false,false]
[null,"④活動タイプ等\n（○年度）",null,null,null,null,"　    活動推進費",null,null,null,null,null,"里山林保全",null,null,null,null,"竹林整備",null,null,null,null,"森林資源利用",null,null,null,null,null,null,null,null,null,null,false,false]
[null,null,null,null,null,null,"　    森林機能強化",null,null,null,null,null,null,"関係人口",null,null,null,null,"資機材購入",null,null,null,null,null,null,null,null,null,null,null,null,null,null,false,false]
[null,"⑤地域住民の比率",null,null,null,null,"　   90%以上",null,null,null,null,"75～90%",null,null,null,"50～75%",null,null,null,"25～50%",null,null,null,"25%未満",null,null,null,null,null,null,null,null,null,false,false]
[null,"⑥活動目標",null,null,null,null,null,null,null,null,null,null,null,null,null,null,null,null,null,null,null,null,null,null,null,null,null,null,null,null,null,null,null,false,false]
[null,"※③・④・⑤欄は、該当する□又は○にチェックを付けてください。",null,null,null,null,null,null,null,null,null,null,null,null,null,null,null,null,null,null,null,null,null,null,null,null,null,null,null,null,null,null,null,false,false]
[null,"※「地域住民」とは、活動対象地と大字単位で同じか隣接する場所に居住する方を指します。",null,null,null,null,null,null,null,null,null,null,null,null,null,null,null,null,null,null,null,null,null,null,null,null,null,null,null,null,null,null,null,false,false]
[]
[null,"２．活動の変化・成果の確認（※本交付金の取得前と比較の上でご回答ください。）",null,null,null,null,null,null,null,null,null,null,null,null,null,null,null,null,null,null,null,null,null,null,null,null,null,null,null,null,null,null,null,false,false]
[null,"※以下の項目について、実現ができていると思う場合には、右側の□にチェックを入れてください。"]
[null,"※チェック欄は、活動計画1年目の時は「1年間」、2年目の時は「2年間」、3年目の時は「3年間」の活動を通じた変化・効果を記載してください。"]
[null,"項目","効果",null,null,null,null,null,null,null,null,null,null,null,null,null,null,null,null,null,null,null,null,null,null,"チェック欄",null,null,null,null,null,null,null,false,false]
[null,null,null,null,null,null,null,null,null,null,null,null,null,null,null,null,null,null,null,null,null,null,null,null,null,null,null,null,null,null,null,null,null,false,false]
[null,"（横展開）\n活動の広がり","　活動組織の構成員数が増加した",null,null,null,null,null,null,null,null,null,null,null,null,null,null,null,null,null,null,null,null,null,null,null,null,null,null,null,null,null,null,false,false]
[null,null,"　幅広い年齢層が協力して活動を行った",null,null,null,null,null,null,null,null,null,null,null,null,null,null,null,null,null,null,null,null,null,null,null,null,null,null,null,null,null,null,false,false]
[null,null,"　新聞や雑誌、広報誌などで活動を紹介された",null,null,null,null,null,null,null,null,null,null,null,null,null,null,null,null,null,null,null,null,null,null,null,null,null,null,null,null,null,null,false,false]
[null,null,"　他団体（活動団体、企業、自治体等）との協力関係がうまれた",null,null,null,null,null,null,null,null,null,null,null,null,null,null,null,null,null,null,null,null,null,null,null,null,null,null,null,null,null,null,false,false]
[null,null,"　外部（異なる集落や都市）の住民も森林整備活動に参加した",null,null,null,null,null,null,null,null,null,null,null,null,null,null,null,null,null,null,null,null,null,null,null,null,null,null,null,null,null,null,false,false]
[null,"（自立性）\n活動の持続性","　構成員が森林整備のための技術や安全管理の資格を取得した",null,null,null,null,null,null,null,null,null,null,null,null,null,null,null,null,null,null,null,null,null,null,null,null,null,null,null,null,null,null,false,false]
[null,null,"　森林整備のための機材や道具を使用できる構成員数が増えた",null,null,null,null,null,null,null,null,null,null,null,null,null,null,null,null,null,null,null,null,null,null,null,null,null,null,null,null,null,null,false,false]
[null,null,"　森林整備のために利用可能な本交付金以外の資金が増えた",null,null,null,null,null,null,null,null,null,null,null,null,null,null,null,null,null,null,null,null,null,null,null,null,null,null,null,null,null,null,false,false]
[null,null,"　若い世代（40歳未満）が参加しており、長期的な活動が可能である",null,null,null,null,null,null,null,null,null,null,null,null,null,null,null,null,null,null,null,null,null,null,null,null,null,null,null,null,null,null,false,false]
[null,null,"　本交付金終了後に森林整備活動を継続できる見込みがある",null,null,null,null,null,null,null,null,null,null,null,null,null,null,null,null,null,null,null,null,null,null,null,null,null,null,null,null,null,null,true,false]
[null,"（景観）\n地域貢献","　対象森林が明るくなり、見通しが良くなった",null,null,null,null,null,null,null,null,null,null,null,null,null,null,null,null,null,null,null,null,null,null,null,null,null,null,null,null,null,null,false,false]
[null,null,"　活動組織の構成員以外から景観が良くなったと言われるようになった",null,null,null,null,null,null,null,null,null,null,null,null,null,null,null,null,null,null,null,null,null,null,null,null,null,null,null,null,null,null,false,false]
[null,null,"　対象森林や周辺で不法投棄されるゴミの量が減った／ゴミのない状態を維持している",null,null,null,null,null,null,null,null,null,null,null,null,null,null,null,null,null,null,null,null,null,null,null,null,null,null,null,null,null,null,false,false]
[null,null,"　対象森林が、観光資源としても利用できるようになった",null,null,null,null,null,null,null,null,null,null,null,null,null,null,null,null,null,null,null,null,null,null,null,null,null,null,null,null,null,null,false,false]
[null,null,"　在来種や歴史性を考慮した地域ならではの景観を守っている",null,null,null,null,null,null,null,null,null,null,null,null,null,null,null,null,null,null,null,null,null,null,null,null,null,null,null,null,null,null,false,false]
[null,"（文化・教育）\n地域貢献","　対象森林が、地域の憩いの場として活用されている",null,null,null,null,null,null,null,null,null,null,null,null,null,null,null,null,null,null,null,null,null,null,null,null,null,null,null,null,null,null,null,false]
[null,null,"　対象森林が、地域の子供たちの自然体験活動や学習・教育の場となっている",null,null,null,null,null,null,null,null,null,null,null,null,null,null,null,null,null,null,null,null,null,null,null,null,null,null,null,null,null,null,null,false]
[null,null,"　地域の幼稚園、保育園、小中学校のいずれかと協力関係にある",null,null,null,null,null,null,null,null,null,null,null,null,null,null,null,null,null,null,null,null,null,null,null,null,null,null,null,null,null,null,null,false]
[null,null,"　対象森林から得られた資源を伝統工芸品づくりに活用した",null,null,null,null,null,null,null,null,null,null,null,null,null,null,null,null,null,null,null,null,null,null,null,null,null,null,null,null,null,null,null,false]
[null,null,"　伝統文化の維持や郷土食づくりに貢献する活動を行った",null,null,null,null,null,null,null,null,null,null,null,null,null,null,null,null,null,null,null,null,null,null,null,null,null,null,null,null,null,null,null,false]
[null,"（その他）\n地域貢献","　鳥獣被害が軽減された（野生鳥獣の出没・侵入が減った）",null,null,null,null,null,null,null,null,null,null,null,null,null,null,null,null,null,null,null,null,null,null,null,null,null,null,null,null,null,null,null,false]
[null,null,"　地域の農業と連携した活動を行った",null,null,null,null,null,null,null,null,null,null,null,null,null,null,null,null,null,null,null,null,null,null,null,null,null,null,null,null,null,null,null,false]
[null,null,"　希少動植物の保護や生物多様性の保全に貢献している",null,null,null,null,null,null,null,null,null,null,null,null,null,null,null,null,null,null,null,null,null,null,null,null,null,null,null,null,null,null,null,false]
[null,null,"　土砂流出が軽減されるなど自然災害の防止に役立った",null,null,null,null,null,null,null,null,null,null,null,null,null,null,null,null,null,null,null,null,null,null,null,null,null,null,null,null,null,null,null,false]
[null,null,"　特産品の開発や地域の雇用創出など地域経済の活性化に貢献している",null,null,null,null,null,null,null,null,null,null,null,null,null,null,null,null,null,null,null,null,null,null,null,null,null,null,null,null,null,null,null,false]
[null,"※災害等が発生し、計画どおりに活動ができなかった場合には、その理由を特記事項にご記入ください。",null,null,null,null,null,null,null,null,null,null,null,null,null,null,null,null,null,null,null,null,null,null,null,null,null,null,null,null,null,null,null,false,false]
[]
[null,null,null,null,null,null,null,null,null,null,null,null,null,null,null,null,null,null,null,null,null,null,null,null,null,null,null,null,null,null,null,null,null,false,false]
[]
[null,"３．関係人口の創出について",null,null,null,null,null,null,null,null,null,null,null,null,null,null,null,null,null,null,null,null,null,null,null,null,null,null,null,null,null,null,null,false,false]
[null,"　今年度に実施した本交付金の活動における地域外からの活動参加者の「延べ人数」及び昨年度の参加者の「延べ人数」の比較について記載してください。"]
[]
[null,"\n　①今年度の地域外からの参加者数\n　　　（延べ人数を記載してください。）",null,null,null,null,null,null,null,null,null,null,null,null,"\n\n　　　　　　　　　　　　　　　　　　　　　　　　　　　人",null,null,null,null,null,null,null,null,null,null,null,null,null,null,null,null,null,null,null,false]
[null,null,null,null,null,null,null,null,null,null,null,null,null,null,null,null,null,null,null,null,null,null,null,null,null,null,null,null,null,null,null,null,null,null,false]
[null,null,null,null,null,null,null,null,null,null,null,null,null,null,null,null,null,null,null,null,null,null,null,null,null,null,null,null,null,null,null,null,null,null,false]
[null,null,null,null,null,null,null,null,null,null,null,null,null,null,null,null,null,null,null,null,null,null,null,null,null,null,null,null,null,null,null,null,null,null,false]
[null,"\n\n　②昨年度の地域外からの参加者との比較\n　　（延べ人数で比較して、「増加した」か「減少した」\n　　　のどちらかに記載してださい。）\n",null,null,null,null,null,null,null,null,null,null,null,null,"    増加した　（　　　　　　　　　　　　　　　　　人）",null,null,null,null,null,null,null,null,null,null,null,null,null,null,null,null,null,null,null,false]
[null,null,null,null,null,null,null,null,null,null,null,null,null,null,null,null,null,null,null,null,null,null,null,null,null,null,null,null,null,null,null,null,null,null,false]
[null,null,null,null,null,null,null,null,null,null,null,null,null,null,null,null,null,null,null,null,null,null,null,null,null,null,null,null,null,null,null,null,null,null,false]
[null,null,null,null,null,null,null,null,null,null,null,null,null,null,"    減少した　（　　　　　　　　　　　　　　　　　人）",null,null,null,null,null,null,null,null,null,null,null,null,null,null,null,null,null,null,null,false]
[]
[]
[null,null,null,null,null,null,null,null,null,null,null,null,null,null,"　　変化なし",null,null,null,null,null,null,null,null,null,null,null,null,null,null,null,null,null,null,null,false,false]
[]
[]
[null,"■ 特筆事項（災害等の状況）",null,null,null,null,null,null,null,null,null,null,null,null,null,null,null,null,null,null,null,null,null,null,null,null,null,null,null,null,null,null,null,null,false,false]
[null,"　自然災害等により、活動を計画どおりに行うことが困難な状況が生じた場合は、期待どおりの効果が得られ\nないことも想定されます。\n　災害等が発生し計画どおりに活動ができなかった場合には、その理由を選択し、該当がなければその他に\n簡単にご記入ください。",null,null,null,null,null,null,null,null,null,null,null,null,null,null,null,null,null,null,null,null,null,null,null,null,null,null,null,null,null,null,null,null,false,false]
[null,null,"災害等で活動区域が被害を受け、活動が行えなかった。",null,null,null,null,null,null,null,null,null,null,null,null,null,null,null,null,null,null,null,null,null,null,null,null,null,null,null,null,null,null,null,false,false]
[null,null,"災害等で活動区域までの道が被害を受け、活動が行えなかった。",null,null,null,null,null,null,null,null,null,null,null,null,null,null,null,null,null,null,null,null,null,null,null,null,null,null,null,null,null,null,null,false,false]
[null,null,"土地所有者との協定が締結できず活動を行えなかった。",null,null,null,null,null,null,null,null,null,null,null,null,null,null,null,null,null,null,null,null,null,null,null,null,null,null,null,null,null,null,null,false,false]
[null,null,"感染症等の感染防止ため活動を行えなかった。",null,null,null,null,null,null,null,null,null,null,null,null,null,null,null,null,null,null,null,null,null,null,null,null,null,null,null,null,null,null,null,false]
[null,null,"その他",null,null,null,null,null,null,null,null,null,null,null,null,null,null,null,null,null,null,null,null,null,null,null,null,null,null,null,null,null,null,null,false]
[null,null,null,null,null,null,null,null,null,null,null,null,null,null,null,null,null,null,null,null,null,null,null,null,null,null,null,null,null,null,null,null,null,null,false]
[null,null,null,null,null,null,null,null,null,null,null,null,null,null,null,null,null,null,null,null,null,null,null,null,null,null,null,null,null,null,null,null,null,null,false]
[null,null,null,null,null,null,null,null,null,null,null,null,null,null,null,null,null,null,null,null,null,null,null,null,null,null,null,null,null,null,null,null,null,null,false]
[null,null,null,null,null,null,null,null,null,null,null,null,null,null,null,null,null,null,null,null,null,null,null,null,null,null,null,null,null,null,null,null,null,null,false]
[]
[]
[]
[]
[null,"　",null,null,null,null,null,null,null,null,null,null,null,null,null,null,null,null,null,null,null,null,null,null,null,null,null,null,null,null,null,null,null,null,false]
[]
[null,null,null,null,null,null,null,null,null,null,null,null,null,null,null,null,null,null,null,null,null,null,null,null,null,null,null,null,null,null,null,null,null,null,false]
[null,null,null,null,null,null,null,null,null,null,null,null,null,null,null,null,null,null,null,null,null,null,null,null,null,null,null,null,null,null,null,null,null,null,false]
[null,null,null,null,null,null,null,null,null,null,null,null,null,null,null,null,null,null,null,null,null,null,null,null,null,null,null,null,null,null,null,null,null,null,false]
[null,null,null,null,null,null,null,null,null,null,null,null,null,null,null,null,null,null,null,null,null,null,null,null,null,null,null,null,null,null,null,null,null,null,false]
[null,null,null,null,null,null,null,null,null,null,null,null,null,null,null,null,null,null,null,null,null,null,null,null,null,null,null,null,null,null,null,null,null,null,false]
[null,null,null,null,null,null,null,null,null,null,null,null,null,null,null,null,null,null,null,null,null,null,null,null,null,null,null,null,null,null,null,null,null,null,false]
[null,null,null,null,null,null,null,null,null,null,null,null,null,null,null,null,null,null,null,null,null,null,null,null,null,null,null,null,null,null,null,null,null,null,false]
[null,null,null,null,null,null,null,null,null,null,null,null,null,null,null,null,null,null,null,null,null,null,null,null,null,null,null,null,null,null,null,null,null,null,false]
[null,null,null,null,null,null,null,null,null,null,null,null,null,null,null,null,null,null,null,null,null,null,null,null,null,null,null,null,null,null,null,null,null,null,false]
[null,null,null,null,null,null,null,null,null,null,null,null,null,null,null,null,null,null,null,null,null,null,null,null,null,null,null,null,null,null,null,null,null,null,false]
[null,null,null,null,null,null,null,null,null,null,null,null,null,null,null,null,null,null,null,null,null,null,null,null,null,null,null,null,null,null,null,null,null,null,false]
[null,null,null,null,null,null,null,null,null,null,null,null,null,null,null,null,null,null,null,null,null,null,null,null,null,null,null,null,null,null,null,null,null,null,false]
[null,null,null,null,null,null,null,null,null,null,null,null,null,null,null,null,null,null,null,null,null,null,null,null,null,null,null,null,null,null,null,null,null,null,false]
[null,null,null,null,null,null,null,null,null,null,null,null,null,null,null,null,null,null,null,null,null,null,null,null,null,null,null,null,null,null,null,null,null,null,false]
[null,null,null,null,null,null,null,null,null,null,null,null,null,null,null,null,null,null,null,null,null,null,null,null,null,null,null,null,null,null,null,null,null,null,false]
[null,null,null,null,null,null,null,null,null,null,null,null,null,null,null,null,null,null,null,null,null,null,null,null,null,null,null,null,null,null,null,null,null,null,false]
[null,null,null,null,null,null,null,null,null,null,null,null,null,null,null,null,null,null,null,null,null,null,null,null,null,null,null,null,null,null,null,null,null,null,false]
[null,null,null,null,null,null,null,null,null,null,null,null,null,null,null,null,null,null,null,null,null,null,null,null,null,null,null,null,null,null,null,null,null,null,false]
[null,null,null,null,null,null,null,null,null,null,null,null,null,null,null,null,null,null,null,null,null,null,null,null,null,null,null,null,null,null,null,null,null,null,false]
[null,null,null,null,null,null,null,null,null,null,null,null,null,null,null,null,null,null,null,null,null,null,null,null,null,null,null,null,null,null,null,null,null,null,false]
[null,null,null,null,null,null,null,null,null,null,null,null,null,null,null,null,null,null,null,null,null,null,null,null,null,null,null,null,null,null,null,null,null,null,false]
[null,null,null,null,null,null,null,null,null,null,null,null,null,null,null,null,null,null,null,null,null,null,null,null,null,null,null,null,null,null,null,null,null,null,false]
[null,null,null,null,null,null,null,null,null,null,null,null,null,null,null,null,null,null,null,null,null,null,null,null,null,null,null,null,null,null,null,null,null,null,false]
[null,null,null,null,null,null,null,null,null,null,null,null,null,null,null,null,null,null,null,null,null,null,null,null,null,null,null,null,null,null,null,null,null,null,false]
[null,null,null,null,null,null,null,null,null,null,null,null,null,null,null,null,null,null,null,null,null,null,null,null,null,null,null,null,null,null,null,null,null,null,false]
[null,null,null,null,null,null,null,null,null,null,null,null,null,null,null,null,null,null,null,null,null,null,null,null,null,null,null,null,null,null,null,null,null,null,false]
[null,null,null,null,null,null,null,null,null,null,null,null,null,null,null,null,null,null,null,null,null,null,null,null,null,null,null,null,null,null,null,null,null,null,false]
[null,null,null,null,null,null,null,null,null,null,null,null,null,null,null,null,null,null,null,null,null,null,null,null,null,null,null,null,null,null,null,null,null,null,false]
[null,null,null,null,null,null,null,null,null,null,null,null,null,null,null,null,null,null,null,null,null,null,null,null,null,null,null,null,null,null,null,null,null,null,false]
[null,null,null,null,null,null,null,null,null,null,null,null,null,null,null,null,null,null,null,null,null,null,null,null,null,null,null,null,null,null,null,null,null,null,false]
[null,null,null,null,null,null,null,null,null,null,null,null,null,null,null,null,null,null,null,null,null,null,null,null,null,null,null,null,null,null,null,null,null,null,false]
[null,null,null,null,null,null,null,null,null,null,null,null,null,null,null,null,null,null,null,null,null,null,null,null,null,null,null,null,null,null,null,null,null,null,false]

{"sheet":"７　様式第13号","index":9,"n_rows":20,"n_cols":9,"rows_kept":20,"cut":false,"hidden":false,"merged":[[1,0,1,8]]}
["（別紙３　様式第13号）"]
["環境負荷低減のクロスコンプライアンス チェックシート"]
[]
[null,"申請時\n（します）","（１）適正な施肥","報告時\n（しました）",null,null,"申請時\n（します）","（５）廃棄物の発生抑制、\n　　　適正な循環的な利用及び適正な処分","報告時\n（しました）"]
["①",null,"※種苗生産を行う場合（該当しない        ）\n肥料の適正な保管",null,null,"⑧",null,"廃棄物の削減に努め、適正に処理"]
["②",null,"※種苗生産を行う場合（該当しない        ）\n肥料の使用状況等の記録・保存に努める",null,null,"⑨",null,"未利用材の有効活用を検討"]
[]
[null,"申請時\n（します）","（２）適正な防除","報告時\n（しました）",null,null,"申請時\n（します）","（６）生物多様性への悪影響の防止","報告時\n（しました）"]
["③",null,"※農薬を使用する場合（該当しない        ）\n農薬の適正な使用・保管",null,null,"⑩",null,"生物多様性に配慮した事業実施（物資調達、施業等）に努める"]
["④",null,"※農薬を使用する場合（該当しない        ）\n農薬の使用状況等の記録・保存"]
[null,null,null,null,null,null,"申請時\n（します）","（７）環境関係法令の遵守等","報告時\n（しました）"]
[null,"申請時\n（します）","（３）エネルギーの節減","報告時\n（しました）",null,"⑪",null,"みどりの食料システム戦略の理解"]
["⑤",null,"林業機械や施設の電気・燃料の使用状況の記録・保存に努める",null,null,"⑫",null,"関係法令の遵守"]
["⑥",null,"省エネを意識し、不必要・非効率なエネルギー消費をしないように努める",null,null,"⑬",null,"林業機械等の装置・車両の適切な整備と管理の実施に努める"]
[null,null,null,null,null,"⑭",null,"正しい知識に基づく作業安全に努める"]
[null,"申請時\n（します）","（４）悪臭及び害虫の発生防止","報告時\n（しました）"]
["⑦",null,"悪臭・害虫の発生防止・低減に努める"]
[]
["（注1）申請を行う際に本様式の「該当なし」欄又は「申請時」欄に☑を付し、報告の際は「報告時」欄に☑を付して提出してください。"]
["（注2）記載内容に「該当しない」場合には□にチェックしてください。この場合、当該項目の申請時・報告時のチェックは不要です。"]

{"sheet":"人件費領収書（一括払い用）","index":10,"n_rows":43,"n_cols":27,"rows_kept":43,"cut":false,"hidden":false,"merged":[[0,0,0,23],[2,20,2,22],[38,11,38,12],[38,13,38,14],[38,15,38,16],[38,17,38,18],[38,19,38,20],[38,21,38,22],[37,0,37,2],[38,0,38,2],[38,3,38,4],[38,5,38,6],[38,7,38,8],[38,9,38,10],[35,0,36,0],[35,1,36,1],[35,23,36,23],[39,0,39,2],[2,5,2,18],[31,0,32,0],[31,1,32,1],[31,23,32,23],[33,0,34,0],[33,1,34,1],[33,23,34,23],[27,0,28,0],[27,1,28,1],[27,23,28,23],[29,0,30,0],[29,1,30,1],[29,23,30,23],[23,0,24,0],[23,1,24,1],[23,23,24,23],[25,0,26,0],[25,1,26,1],[25,23,26,23],[19,0,20,0],[19,1,20,1],[19,23,20,23],[21,0,22,0],[21,1,22,1],[21,23,22,23],[15,0,16,0],[15,1,16,1],[15,23,16,23],[17,0,18,0],[17,1,18,1],[17,23,18,23],[11,0,12,0],[11,1,12,1],[11,23,12,23],[13,0,14,0],[13,1,14,1],[13,23,14,23],[7,0,8,0],[7,1,8,1],[7,23,8,23],[9,0,10,0],[9,1,10,1],[9,23,10,23],[5,15,5,16],[6,15,6,16],[6,17,6,18],[6,19,6,20],[6,21,6,22],[6,25,6,26],[6,3,6,4],[6,5,6,6],[6,7,6,8],[6,9,6,10],[6,11,6,12],[6,13,6,14],[2,0,2,4],[3,0,3,23],[4,0,6,0],[4,1,6,1],[4,2,5,2],[4,3,4,22],[4,23,6,23],[5,3,5,4],[5,17,5,18],[5,19,5,20],[5,21,5,22],[5,5,5,6],[5,7,5,8],[5,9,5,10],[5,11,5,12],[5,13,5,14]]}
["令和6年度　森林・山村多面的機能発揮対策交付金　人件費領収書"]
[]
["活動組織の名称",null,null,null,null,"○○の森保存会"]
[]
["活動日","タイプ","区分","氏　　名",null,null,null,null,null,null,null,null,null,null,null,null,null,null,null,null,null,null,null,"金額計",null,"時間単価",1100]
[null,null,null,"A",null,"B",null,"C",null,"D",null,"E",null,"F",null,"G",null,"H"]
[null,null,"交通費単価",300,null,500,null,300,null,300,null,500,null,300,null,300,null,500,null,null,null,null,null,null,null,"タイプ別集計"]
["2022-06-11","里山林保全","日当",6,{"$f":"D8*$AA$5","v":6600},1,{"$f":"F8*$AA$5","v":1100},null,{"$f":"H8*$AA$5","v":0},null,{"$f":"J8*$AA$5","v":0},null,{"$f":"L8*$AA$5","v":0},null,{"$f":"N8*$AA$5","v":0},null,{"$f":"P8*$AA$5","v":0},null,{"$f":"R8*$AA$5","v":0},null,{"$f":"T8*$AA$5","v":0},null,{"$f":"V8*$AA$5","v":0},{"$f":"SUM(E8:E9,G8:G9,I8:I9,K8:K9,M8:M9,O8:O9,Q8:Q9,S8:S9,U8:U9,W8:W9)","v":8500},null,"活動推進費",{"$f":"SUMIFS($X$8:$X$37,$B$8:$B$37,Z8)","v":0}]
[null,null,"交通費",null,{"$f":"IF(D8=0,0,$D$7)","v":300},null,{"$f":"IF(F8=0,0,$F$7)","v":500},null,{"$f":"IF(H8=0,0,$H$7)","v":0},null,{"$f":"IF(J8=0,0,$J$7)","v":0},null,{"$f":"IF(L8=0,0,$L$7)","v":0},null,{"$f":"IF(N8=0,0,$N$7)","v":0},null,{"$f":"IF(P8=0,0,$P$7)","v":0},null,{"$f":"IF(R8=0,0,$R$7)","v":0},null,{"$f":"IF(T8=0,0,$T$7)","v":0},null,{"$f":"IF(V8=0,0,$V$7)","v":0},null,null,"里山林保全",8500]
["2022-06-11","機能強化","日当",null,{"$f":"D10*$AA$5","v":0},null,{"$f":"F10*$AA$5","v":0},6,{"$f":"H10*$AA$5","v":6600},null,{"$f":"J10*$AA$5","v":0},null,{"$f":"L10*$AA$5","v":0},null,{"$f":"N10*$AA$5","v":0},null,{"$f":"P10*$AA$5","v":0},null,{"$f":"R10*$AA$5","v":0},null,{"$f":"T10*$AA$5","v":0},null,{"$f":"V10*$AA$5","v":0},{"$f":"SUM(E10:E11,G10:G11,I10:I11,K10:K11,M10:M11,O10:O11,Q10:Q11,S10:S11,U10:U11,W10:W11)","v":6900},null,"竹林整備",0]
[null,null,"交通費",null,{"$f":"IF(D10=0,0,$D$7)","v":0},null,{"$f":"IF(F10=0,0,$F$7)","v":0},null,{"$f":"IF(H10=0,0,$H$7)","v":300},null,{"$f":"IF(J10=0,0,$J$7)","v":0},null,{"$f":"IF(L10=0,0,$L$7)","v":0},null,{"$f":"IF(N10=0,0,$N$7)","v":0},null,{"$f":"IF(P10=0,0,$P$7)","v":0},null,{"$f":"IF(R10=0,0,$R$7)","v":0},null,{"$f":"IF(T10=0,0,$T$7)","v":0},null,{"$f":"IF(V10=0,0,$V$7)","v":0},null,null,"資源利用",0]
[null,null,"日当",null,{"$f":"D12*$AA$5","v":0},null,{"$f":"F12*$AA$5","v":0},null,{"$f":"H12*$AA$5","v":0},null,{"$f":"J12*$AA$5","v":0},null,{"$f":"L12*$AA$5","v":0},null,{"$f":"N12*$AA$5","v":0},null,{"$f":"P12*$AA$5","v":0},null,{"$f":"R12*$AA$5","v":0},null,{"$f":"T12*$AA$5","v":0},null,{"$f":"V12*$AA$5","v":0},{"$f":"SUM(E12:E13,G12:G13,I12:I13,K12:K13,M12:M13,O12:O13,Q12:Q13,S12:S13,U12:U13,W12:W13)","v":0},null,"機能強化",6900]
[null,null,"交通費",null,{"$f":"IF(D12=0,0,$D$7)","v":0},null,{"$f":"IF(F12=0,0,$F$7)","v":0},null,{"$f":"IF(H12=0,0,$H$7)","v":0},null,{"$f":"IF(J12=0,0,$J$7)","v":0},null,{"$f":"IF(L12=0,0,$L$7)","v":0},null,{"$f":"IF(N12=0,0,$N$7)","v":0},null,{"$f":"IF(P12=0,0,$P$7)","v":0},null,{"$f":"IF(R12=0,0,$R$7)","v":0},null,{"$f":"IF(T12=0,0,$T$7)","v":0},null,{"$f":"IF(V12=0,0,$V$7)","v":0},null,null,"関係人口",0]
[null,null,"日当",null,{"$f":"D14*$AA$5","v":0},null,{"$f":"F14*$AA$5","v":0},null,{"$f":"H14*$AA$5","v":0},null,{"$f":"J14*$AA$5","v":0},null,{"$f":"L14*$AA$5","v":0},null,{"$f":"N14*$AA$5","v":0},null,{"$f":"P14*$AA$5","v":0},null,{"$f":"R14*$AA$5","v":0},null,{"$f":"T14*$AA$5","v":0},null,{"$f":"V14*$AA$5","v":0},{"$f":"SUM(E14:E15,G14:G15,I14:I15,K14:K15,M14:M15,O14:O15,Q14:Q15,S14:S15,U14:U15,W14:W15)","v":0}]
[null,null,"交通費",null,{"$f":"IF(D14=0,0,$D$7)","v":0},null,{"$f":"IF(F14=0,0,$F$7)","v":0},null,{"$f":"IF(H14=0,0,$H$7)","v":0},null,{"$f":"IF(J14=0,0,$J$7)","v":0},null,{"$f":"IF(L14=0,0,$L$7)","v":0},null,{"$f":"IF(N14=0,0,$N$7)","v":0},null,{"$f":"IF(P14=0,0,$P$7)","v":0},null,{"$f":"IF(R14=0,0,$R$7)","v":0},null,{"$f":"IF(T14=0,0,$T$7)","v":0},null,{"$f":"IF(V14=0,0,$V$7)","v":0}]
[null,null,"日当",null,{"$f":"D16*$AA$5","v":0},null,{"$f":"F16*$AA$5","v":0},null,{"$f":"H16*$AA$5","v":0},null,{"$f":"J16*$AA$5","v":0},null,{"$f":"L16*$AA$5","v":0},null,{"$f":"N16*$AA$5","v":0},null,{"$f":"P16*$AA$5","v":0},null,{"$f":"R16*$AA$5","v":0},null,{"$f":"T16*$AA$5","v":0},null,{"$f":"V16*$AA$5","v":0},{"$f":"SUM(E16:E17,G16:G17,I16:I17,K16:K17,M16:M17,O16:O17,Q16:Q17,S16:S17,U16:U17,W16:W17)","v":0}]
[null,null,"交通費",null,{"$f":"IF(D16=0,0,$D$7)","v":0},null,{"$f":"IF(F16=0,0,$F$7)","v":0},null,{"$f":"IF(H16=0,0,$H$7)","v":0},null,{"$f":"IF(J16=0,0,$J$7)","v":0},null,{"$f":"IF(L16=0,0,$L$7)","v":0},null,{"$f":"IF(N16=0,0,$N$7)","v":0},null,{"$f":"IF(P16=0,0,$P$7)","v":0},null,{"$f":"IF(R16=0,0,$R$7)","v":0},null,{"$f":"IF(T16=0,0,$T$7)","v":0},null,{"$f":"IF(V16=0,0,$V$7)","v":0}]
[null,null,"日当",null,{"$f":"D18*$AA$5","v":0},null,{"$f":"F18*$AA$5","v":0},null,{"$f":"H18*$AA$5","v":0},null,{"$f":"J18*$AA$5","v":0},null,{"$f":"L18*$AA$5","v":0},null,{"$f":"N18*$AA$5","v":0},null,{"$f":"P18*$AA$5","v":0},null,{"$f":"R18*$AA$5","v":0},null,{"$f":"T18*$AA$5","v":0},null,{"$f":"V18*$AA$5","v":0},{"$f":"SUM(E18:E19,G18:G19,I18:I19,K18:K19,M18:M19,O18:O19,Q18:Q19,S18:S19,U18:U19,W18:W19)","v":0}]
[null,null,"交通費",null,{"$f":"IF(D18=0,0,$D$7)","v":0},null,{"$f":"IF(F18=0,0,$F$7)","v":0},null,{"$f":"IF(H18=0,0,$H$7)","v":0},null,{"$f":"IF(J18=0,0,$J$7)","v":0},null,{"$f":"IF(L18=0,0,$L$7)","v":0},null,{"$f":"IF(N18=0,0,$N$7)","v":0},null,{"$f":"IF(P18=0,0,$P$7)","v":0},null,{"$f":"IF(R18=0,0,$R$7)","v":0},null,{"$f":"IF(T18=0,0,$T$7)","v":0},null,{"$f":"IF(V18=0,0,$V$7)","v":0}]
[null,null,"日当",null,{"$f":"D20*$AA$5","v":0},null,{"$f":"F20*$AA$5","v":0},null,{"$f":"H20*$AA$5","v":0},null,{"$f":"J20*$AA$5","v":0},null,{"$f":"L20*$AA$5","v":0},null,{"$f":"N20*$AA$5","v":0},null,{"$f":"P20*$AA$5","v":0},null,{"$f":"R20*$AA$5","v":0},null,{"$f":"T20*$AA$5","v":0},null,{"$f":"V20*$AA$5","v":0},{"$f":"SUM(E20:E21,G20:G21,I20:I21,K20:K21,M20:M21,O20:O21,Q20:Q21,S20:S21,U20:U21,W20:W21)","v":0}]
[null,null,"交通費",null,{"$f":"IF(D20=0,0,$D$7)","v":0},null,{"$f":"IF(F20=0,0,$F$7)","v":0},null,{"$f":"IF(H20=0,0,$H$7)","v":0},null,{"$f":"IF(J20=0,0,$J$7)","v":0},null,{"$f":"IF(L20=0,0,$L$7)","v":0},null,{"$f":"IF(N20=0,0,$N$7)","v":0},null,{"$f":"IF(P20=0,0,$P$7)","v":0},null,{"$f":"IF(R20=0,0,$R$7)","v":0},null,{"$f":"IF(T20=0,0,$T$7)","v":0},null,{"$f":"IF(V20=0,0,$V$7)","v":0}]
[null,null,"日当",null,{"$f":"D22*$AA$5","v":0},null,{"$f":"F22*$AA$5","v":0},null,{"$f":"H22*$AA$5","v":0},null,{"$f":"J22*$AA$5","v":0},null,{"$f":"L22*$AA$5","v":0},null,{"$f":"N22*$AA$5","v":0},null,{"$f":"P22*$AA$5","v":0},null,{"$f":"R22*$AA$5","v":0},null,{"$f":"T22*$AA$5","v":0},null,{"$f":"V22*$AA$5","v":0},{"$f":"SUM(E22:E23,G22:G23,I22:I23,K22:K23,M22:M23,O22:O23,Q22:Q23,S22:S23,U22:U23,W22:W23)","v":0}]
[null,null,"交通費",null,{"$f":"IF(D22=0,0,$D$7)","v":0},null,{"$f":"IF(F22=0,0,$F$7)","v":0},null,{"$f":"IF(H22=0,0,$H$7)","v":0},null,{"$f":"IF(J22=0,0,$J$7)","v":0},null,{"$f":"IF(L22=0,0,$L$7)","v":0},null,{"$f":"IF(N22=0,0,$N$7)","v":0},null,{"$f":"IF(P22=0,0,$P$7)","v":0},null,{"$f":"IF(R22=0,0,$R$7)","v":0},null,{"$f":"IF(T22=0,0,$T$7)","v":0},null,{"$f":"IF(V22=0,0,$V$7)","v":0}]
[null,null,"日当",null,{"$f":"D24*$AA$5","v":0},null,{"$f":"F24*$AA$5","v":0},null,{"$f":"H24*$AA$5","v":0},null,{"$f":"J24*$AA$5","v":0},null,{"$f":"L24*$AA$5","v":0},null,{"$f":"N24*$AA$5","v":0},null,{"$f":"P24*$AA$5","v":0},null,{"$f":"R24*$AA$5","v":0},null,{"$f":"T24*$AA$5","v":0},null,{"$f":"V24*$AA$5","v":0},{"$f":"SUM(E24:E25,G24:G25,I24:I25,K24:K25,M24:M25,O24:O25,Q24:Q25,S24:S25,U24:U25,W24:W25)","v":0}]
[null,null,"交通費",null,{"$f":"IF(D24=0,0,$D$7)","v":0},null,{"$f":"IF(F24=0,0,$F$7)","v":0},null,{"$f":"IF(H24=0,0,$H$7)","v":0},null,{"$f":"IF(J24=0,0,$J$7)","v":0},null,{"$f":"IF(L24=0,0,$L$7)","v":0},null,{"$f":"IF(N24=0,0,$N$7)","v":0},null,{"$f":"IF(P24=0,0,$P$7)","v":0},null,{"$f":"IF(R24=0,0,$R$7)","v":0},null,{"$f":"IF(T24=0,0,$T$7)","v":0},null,{"$f":"IF(V24=0,0,$V$7)","v":0}]
[null,null,"日当",null,{"$f":"D26*$AA$5","v":0},null,{"$f":"F26*$AA$5","v":0},null,{"$f":"H26*$AA$5","v":0},null,{"$f":"J26*$AA$5","v":0},null,{"$f":"L26*$AA$5","v":0},null,{"$f":"N26*$AA$5","v":0},null,{"$f":"P26*$AA$5","v":0},null,{"$f":"R26*$AA$5","v":0},null,{"$f":"T26*$AA$5","v":0},null,{"$f":"V26*$AA$5","v":0},{"$f":"SUM(E26:E27,G26:G27,I26:I27,K26:K27,M26:M27,O26:O27,Q26:Q27,S26:S27,U26:U27,W26:W27)","v":0}]
[null,null,"交通費",null,{"$f":"IF(D26=0,0,$D$7)","v":0},null,{"$f":"IF(F26=0,0,$F$7)","v":0},null,{"$f":"IF(H26=0,0,$H$7)","v":0},null,{"$f":"IF(J26=0,0,$J$7)","v":0},null,{"$f":"IF(L26=0,0,$L$7)","v":0},null,{"$f":"IF(N26=0,0,$N$7)","v":0},null,{"$f":"IF(P26=0,0,$P$7)","v":0},null,{"$f":"IF(R26=0,0,$R$7)","v":0},null,{"$f":"IF(T26=0,0,$T$7)","v":0},null,{"$f":"IF(V26=0,0,$V$7)","v":0}]
[null,null,"日当",null,{"$f":"D28*$AA$5","v":0},null,{"$f":"F28*$AA$5","v":0},null,{"$f":"H28*$AA$5","v":0},null,{"$f":"J28*$AA$5","v":0},null,{"$f":"L28*$AA$5","v":0},null,{"$f":"N28*$AA$5","v":0},null,{"$f":"P28*$AA$5","v":0},null,{"$f":"R28*$AA$5","v":0},null,{"$f":"T28*$AA$5","v":0},null,{"$f":"V28*$AA$5","v":0},{"$f":"SUM(E28:E29,G28:G29,I28:I29,K28:K29,M28:M29,O28:O29,Q28:Q29,S28:S29,U28:U29,W28:W29)","v":0}]
[null,null,"交通費",null,{"$f":"IF(D28=0,0,$D$7)","v":0},null,{"$f":"IF(F28=0,0,$F$7)","v":0},null,{"$f":"IF(H28=0,0,$H$7)","v":0},null,{"$f":"IF(J28=0,0,$J$7)","v":0},null,{"$f":"IF(L28=0,0,$L$7)","v":0},null,{"$f":"IF(N28=0,0,$N$7)","v":0},null,{"$f":"IF(P28=0,0,$P$7)","v":0},null,{"$f":"IF(R28=0,0,$R$7)","v":0},null,{"$f":"IF(T28=0,0,$T$7)","v":0},null,{"$f":"IF(V28=0,0,$V$7)","v":0}]
[null,null,"日当",null,{"$f":"D30*$AA$5","v":0},null,{"$f":"F30*$AA$5","v":0},null,{"$f":"H30*$AA$5","v":0},null,{"$f":"J30*$AA$5","v":0},null,{"$f":"L30*$AA$5","v":0},null,{"$f":"N30*$AA$5","v":0},null,{"$f":"P30*$AA$5","v":0},null,{"$f":"R30*$AA$5","v":0},null,{"$f":"T30*$AA$5","v":0},null,{"$f":"V30*$AA$5","v":0},{"$f":"SUM(E30:E31,G30:G31,I30:I31,K30:K31,M30:M31,O30:O31,Q30:Q31,S30:S31,U30:U31,W30:W31)","v":0}]
[null,null,"交通費",null,{"$f":"IF(D30=0,0,$D$7)","v":0},null,{"$f":"IF(F30=0,0,$F$7)","v":0},null,{"$f":"IF(H30=0,0,$H$7)","v":0},null,{"$f":"IF(J30=0,0,$J$7)","v":0},null,{"$f":"IF(L30=0,0,$L$7)","v":0},null,{"$f":"IF(N30=0,0,$N$7)","v":0},null,{"$f":"IF(P30=0,0,$P$7)","v":0},null,{"$f":"IF(R30=0,0,$R$7)","v":0},null,{"$f":"IF(T30=0,0,$T$7)","v":0},null,{"$f":"IF(V30=0,0,$V$7)","v":0}]
[null,null,"日当",null,{"$f":"D32*$AA$5","v":0},null,{"$f":"F32*$AA$5","v":0},null,{"$f":"H32*$AA$5","v":0},null,{"$f":"J32*$AA$5","v":0},null,{"$f":"L32*$AA$5","v":0},null,{"$f":"N32*$AA$5","v":0},null,{"$f":"P32*$AA$5","v":0},null,{"$f":"R32*$AA$5","v":0},null,{"$f":"T32*$AA$5","v":0},null,{"$f":"V32*$AA$5","v":0},{"$f":"SUM(E32:E33,G32:G33,I32:I33,K32:K33,M32:M33,O32:O33,Q32:Q33,S32:S33,U32:U33,W32:W33)","v":0}]
[null,null,"交通費",null,{"$f":"IF(D32=0,0,$D$7)","v":0},null,{"$f":"IF(F32=0,0,$F$7)","v":0},null,{"$f":"IF(H32=0,0,$H$7)","v":0},null,{"$f":"IF(J32=0,0,$J$7)","v":0},null,{"$f":"IF(L32=0,0,$L$7)","v":0},null,{"$f":"IF(N32=0,0,$N$7)","v":0},null,{"$f":"IF(P32=0,0,$P$7)","v":0},null,{"$f":"IF(R32=0,0,$R$7)","v":0},null,{"$f":"IF(T32=0,0,$T$7)","v":0},null,{"$f":"IF(V32=0,0,$V$7)","v":0}]
[null,null,"日当",null,{"$f":"D34*$AA$5","v":0},null,{"$f":"F34*$AA$5","v":0},null,{"$f":"H34*$AA$5","v":0},null,{"$f":"J34*$AA$5","v":0},null,{"$f":"L34*$AA$5","v":0},null,{"$f":"N34*$AA$5","v":0},null,{"$f":"P34*$AA$5","v":0},null,{"$f":"R34*$AA$5","v":0},null,{"$f":"T34*$AA$5","v":0},null,{"$f":"V34*$AA$5","v":0},{"$f":"SUM(E34:E35,G34:G35,I34:I35,K34:K35,M34:M35,O34:O35,Q34:Q35,S34:S35,U34:U35,W34:W35)","v":0}]
[null,null,"交通費",null,{"$f":"IF(D34=0,0,$D$7)","v":0},null,{"$f":"IF(F34=0,0,$F$7)","v":0},null,{"$f":"IF(H34=0,0,$H$7)","v":0},null,{"$f":"IF(J34=0,0,$J$7)","v":0},null,{"$f":"IF(L34=0,0,$L$7)","v":0},null,{"$f":"IF(N34=0,0,$N$7)","v":0},null,{"$f":"IF(P34=0,0,$P$7)","v":0},null,{"$f":"IF(R34=0,0,$R$7)","v":0},null,{"$f":"IF(T34=0,0,$T$7)","v":0},null,{"$f":"IF(V34=0,0,$V$7)","v":0}]
[null,null,"日当",null,{"$f":"D36*$AA$5","v":0},null,{"$f":"F36*$AA$5","v":0},null,{"$f":"H36*$AA$5","v":0},null,{"$f":"J36*$AA$5","v":0},null,{"$f":"L36*$AA$5","v":0},null,{"$f":"N36*$AA$5","v":0},null,{"$f":"P36*$AA$5","v":0},null,{"$f":"R36*$AA$5","v":0},null,{"$f":"T36*$AA$5","v":0},null,{"$f":"V36*$AA$5","v":0},{"$f":"SUM(E36:E37,G36:G37,I36:I37,K36:K37,M36:M37,O36:O37,Q36:Q37,S36:S37,U36:U37,W36:W37)","v":0}]
[null,null,"交通費",null,{"$f":"IF(D36=0,0,$D$7)","v":0},null,{"$f":"IF(F36=0,0,$F$7)","v":0},null,{"$f":"IF(H36=0,0,$H$7)","v":0},null,{"$f":"IF(J36=0,0,$J$7)","v":0},null,{"$f":"IF(L36=0,0,$L$7)","v":0},null,{"$f":"IF(N36=0,0,$N$7)","v":0},null,{"$f":"IF(P36=0,0,$P$7)","v":0},null,{"$f":"IF(R36=0,0,$R$7)","v":0},null,{"$f":"IF(T36=0,0,$T$7)","v":0},null,{"$f":"IF(V36=0,0,$V$7)","v":0}]
["金額計",null,null,{"$f":"SUM(D8:D37)","v":6},6900,1,1600,6,6900,0,0,0,0,0,0,0,0,0,0,0,0,0,0,15400]
["領収年月日",null,null,"2025-02-20",null,"2025-02-20",null,"2025-02-20",null,"2025-02-20",null,"2025-02-20",null,"2025-02-20",null,"2025-02-20",null,"2025-02-20"]
["領収印"]
["（注１）　黄色の欄を活動組織事務局が作成し、緑の欄は個々のメンバーが捺印して下さい。また、適宜行及び列を増やして下さい。"]
["（注２）　集合写真で参加が証明できない人は、日当を支払えません。"]
["（注３）　日当の単価は原則として時間あたり１，１００円（６時間／日）を上限とし、交通費は人件費に含めることができます。"]

{"sheet":"備品管理台帳","index":11,"n_rows":13,"n_cols":19,"rows_kept":13,"cut":false,"hidden":false,"merged":[[10,12,11,16],[10,17,11,19],[12,12,13,16],[12,17,13,19],[4,12,5,16],[4,17,5,19],[6,12,7,16],[6,17,7,19],[8,12,9,16],[8,17,9,19],[2,0,2,10],[2,12,2,16],[2,18,2,19],[3,1,3,3],[3,5,3,10],[3,12,3,16],[3,17,3,19]]}
[]
["※提出の必要なし"]
["備品管理台帳",null,null,null,null,null,null,null,null,null,null,null,"【主な資機材・施設の処分制限期間】",null,null,null,null,null,"参考"]
["活動組織名","○○の森保存会",null,null,"事業名","森林・山村多面的機能発揮対策交付金",null,null,null,null,null,null,"備品・設備",null,null,null,null,"処分制限期間"]
["備品の名称","規格・寸法","数量","取得金額","総額","取得年月日","処分制限期間","廃棄年月日","購入先","担当及び連絡先","保管場所",null,"[機械及び装置]\nチェンソー、刈払い機、丸鋸、ウインチ\n軽架線、チッパー、薪割り機",null,null,null,null,"5年から8年"]
["チェンソー","ゼノアGZ360EZ-25P14",2,53790,107280,"2020-05-15",7,null,"○○商店"," △△　　0xx-xxx-xxxx","代表宅"]
["刈払い機","新ダイワSSR2500-2T",2,49280,98560,"2021-08-10",5,null,"JA○○","□△　　0yy-yyy-yyyy","代表宅",null,"[器具及び備品、機械及び装置]\n薪ストーブ、薪ボイラー",null,null,null,null,"薪ストーブ　　5年\n薪ボイラー　17年"]
["薪割り機","ホンダPH-GLS20-PR",1,328000,328000,"2021-08-10",8,null,"○○商店"," △△　　0xx-xxx-xxxx","○○公民館"]
[null,null,null,null,null,null,null,null,null,null,null,null,"[農林業用の構築物]\n電気柵、土留め柵等、炭焼き小屋",null,null,null,null,"5年から8年"]
[]
[null,null,null,null,null,null,null,null,null,null,null,null,"[簡易建物]\nあずまや（休憩や作業のための簡易建物）\n資機材保管庫、移動式の簡易なトイレ",null,null,null,null,"7年から10年"]
[]
[null,null,null,null,null,null,null,null,null,null,null,null,"[試験又は計測機器]\n携帯型GPS機器",null,null,null,null,"5年"]